Workbook

Sheet Strategy Considerations
B3: The sponsor and the bank size the debt to correspond to a particular bid and the debt to capital is 80% while the DSCR is 1.20. The bid is reduced. What should be negotiated
B5: The sponsor and the bank size the debt to correspond to a particular bid and the debt to capital is 80% while the DSCR is 1.20. The tax rate is reduced. What can be done.
B7: The debt to capital constraint is driving the maximum debt. Should the sponsor worry more about development fees or getting the consultant to adjust the forecast
B9: Try to Make the Following Table
C12: DSCR Constraint Matters More When
C14: EBITDA | D14: Lower or Higher
C15: Debt Tenor | D15: Longer or Shorter
C16: Project IRR | D16: Lower or Higher
C17: Tax Rate | D17: Lower or Higher
C18: Interest Rate | D18: Lower or Higher
B20: Name Some Strategies when DSCR Constraint Applies

Sheet Issues and Term Sheet
A2: Key Question: | K2: Debt to Cap | N2: DSCR Constraint
B3: How to achieve high Equity IRR from Low Project IRR | K3: Higher PR IRR | N3: Lower PR IRR
K4: Longer Tenor | N4: Shorter-tenor
B5: When does Debt/Cap Matter and When does DSCR Matter | K5: Lower Interest Rate | N5: Higher Interest Rate
K6: Lower DSCR | N6: Higher DSCR
K7: Lower Taxes | N7: Higher Taxes

Sheet Debt Sizing Exercise
A1: Sculpting and Grace Periods | E1: =F104 -> 0 | G1: EBITDA | H1: =E101 -> 80 | I1: Equity IRR | J1: =N107 -> 0.09621084268 | L1: Pre-tax IRR | M1: =E11 -> 0.08867085085 | O1: Pre-tax Debt IRR | P1: =E93 -> 0.03423511745 | S1: =E37 -> DSCR Constraint
D2: Go to Output | G2: Target DSCR | H2: =E24 -> 1.4 | I2: DSCR | J2: =F85 -> 1.4 | L2: Post-tax IRR | M2: =E20 -> 0.0679690197 | O2: After-tax Debt IRR | P2: =E95 -> 0.02400776739
G3: Max Debt/Cap | H3: =E23 -> 0.75 | I3: Debt/Cap | J3: =G60/G62 -> 0.6446358643
C4: Period | G4: 0 | H4: 1 | I4: 2 | J4: 3 | K4: 4 | L4: 5 | M4: 6 | N4: 7 | O4: 8 | P4: 9 | Q4: 10 | R4: 11 | S4: 12 | T4: 13 | U4: 14 | V4: 15 | W4: 16 | X4: 17 | Y4: 18 | Z4: 19 | AA4: 20 | AB4: 21 | AC4: 22 | AD4: 23 | AE4: 24 | AF4: 25 | AG4: 26 | AH4: 27 | AI4: 28 | AJ4: 29 | AK4: 30
C5: Repayment Switch | E5: =E27 -> 0 | F5: =E5+E28 -> 15 | G5: =COUNTIF(H5:AK5,TRUE) -> 15 | H5: =AND(H4>$E$5,H4<=$F$5) -> TRUE | I5: =AND(I4>$E$5,I4<=$F$5) -> TRUE | J5: TRUE | K5: TRUE | L5: TRUE | M5: TRUE | N5: TRUE | O5: TRUE | P5: TRUE | Q5: TRUE | R5: TRUE | S5: TRUE | T5: TRUE | U5: TRUE | V5: TRUE | W5: FALSE | X5: FALSE | Y5: FALSE | Z5: FALSE | AA5: FALSE | AB5: FALSE | AC5: FALSE | AD5: FALSE | AE5: FALSE | AF5: FALSE | AG5: FALSE | AH5: FALSE | AI5: FALSE | AJ5: FALSE | AK5: FALSE
A6: Operations
C7: Capital Expenditures | G7: 1000
C8: Growth | G8: 0.02
C9: EBITDA | H9: 80 | I9: =H9*(1+$G$8) -> 81.6 | J9: 83.232 | K9: 84.89664 | L9: 86.5945728 | M9: 88.32646426 | N9: 90.09299354 | O9: 91.89485341 | P9: 93.73275048 | Q9: 95.60740549 | R9: 97.5195536 | S9: 99.46994467 | T9: 101.4593436 | U9: 103.4885304 | V9: 105.558301 | W9: 107.6694671 | X9: 109.8228564 | Y9: 112.0193135 | Z9: 114.2596998 | AA9: 116.5448938 | AB9: 118.8757917 | AC9: 121.2533075 | AD9: 123.6783737 | AE9: 126.1519411 | AF9: 128.67498 | AG9: 131.2484796 | AH9: 133.8734491 | AI9: 136.5509181 | AJ9: 139.2819365 | AK9: 142.0675752
C10: Net Pre-ta Cash Flow | G10: =G9-G7 -> -1000 | H10: =H9-H7 -> 80 | I10: 81.6 | J10: 83.232 | K10: 84.89664 | L10: 86.5945728 | M10: 88.32646426 | N10: 90.09299354 | O10: 91.89485341 | P10: 93.73275048 | Q10: 95.60740549 | R10: 97.5195536 | S10: 99.46994467 | T10: 101.4593436 | U10: 103.4885304 | V10: 105.558301 | W10: 107.6694671 | X10: 109.8228564 | Y10: 112.0193135 | Z10: 114.2596998 | AA10: 116.5448938 | AB10: 118.8757917 | AC10: 121.2533075 | AD10: 123.6783737 | AE10: 126.1519411 | AF10: 128.67498 | AG10: 131.2484796 | AH10: 133.8734491 | AI10: 136.5509181 | AJ10: 139.2819365 | AK10: 142.0675752
C11: Pre-tax Project IRR | E11: =IRR(10:10) -> 0.08867085085
A13: Taxes
C14: Depreciation | E14: 30 | H14: =H4<=$E$14 -> TRUE | I14: =I4<=$E$14 -> TRUE | J14: TRUE | K14: TRUE | L14: TRUE | M14: TRUE | N14: TRUE | O14: TRUE | P14: TRUE | Q14: TRUE | R14: TRUE | S14: TRUE | T14: TRUE | U14: TRUE | V14: TRUE | W14: TRUE | X14: TRUE | Y14: TRUE | Z14: TRUE | AA14: TRUE | AB14: TRUE | AC14: TRUE | AD14: TRUE | AE14: TRUE | AF14: TRUE | AG14: TRUE | AH14: TRUE | AI14: TRUE | AJ14: TRUE | AK14: TRUE
C15: Tax Rate | E15: 0.3
C16: Depreciation Expense | H16: =$G$7/$E$14*H14 -> 33.33333333 | I16: 33.33333333 | J16: 33.33333333 | K16: 33.33333333 | L16: 33.33333333 | M16: 33.33333333 | N16: 33.33333333 | O16: 33.33333333 | P16: 33.33333333 | Q16: 33.33333333 | R16: 33.33333333 | S16: 33.33333333 | T16: 33.33333333 | U16: 33.33333333 | V16: 33.33333333 | W16: 33.33333333 | X16: 33.33333333 | Y16: 33.33333333 | Z16: 33.33333333 | AA16: 33.33333333 | AB16: 33.33333333 | AC16: 33.33333333 | AD16: 33.33333333 | AE16: 33.33333333 | AF16: 33.33333333 | AG16: 33.33333333 | AH16: 33.33333333 | AI16: 33.33333333 | AJ16: 33.33333333 | AK16: 33.33333333
C17: EBIT | H17: =H10-H16 -> 46.66666667 | I17: =I10-I16 -> 48.26666667 | J17: 49.89866667 | K17: 51.56330667 | L17: 53.26123947 | M17: 54.99313092 | N17: 56.75966021 | O17: 58.56152008 | P17: 60.39941715 | Q17: 62.27407216 | R17: 64.18622027 | S17: 66.13661134 | T17: 68.12601023 | U17: 70.1551971 | V17: 72.22496771 | W17: 74.33613373 | X17: 76.48952307 | Y17: 78.6859802 | Z17: 80.92636647 | AA17: 83.21156047 | AB17: 85.54245834 | AC17: 87.91997418 | AD17: 90.34504033 | AE17: 92.8186078 | AF17: 95.34164662 | AG17: 97.91514622 | AH17: 100.5401158 | AI17: 103.2175848 | AJ17: 105.9486032 | AK17: 108.7342419
C18: Taxes on EBIT | E18: =E15 -> 0.3 | H18: =$E$18*H17 -> 14 | I18: =$E$18*I17 -> 14.48 | J18: 14.9696 | K18: 15.468992 | L18: 15.97837184 | M18: 16.49793928 | N18: 17.02789806 | O18: 17.56845602 | P18: 18.11982514 | Q18: 18.68222165 | R18: 19.25586608 | S18: 19.8409834 | T18: 20.43780307 | U18: 21.04655913 | V18: 21.66749031 | W18: 22.30084012 | X18: 22.94685692 | Y18: 23.60579406 | Z18: 24.27790994 | AA18: 24.96346814 | AB18: 25.6627375 | AC18: 26.37599225 | AD18: 27.1035121 | AE18: 27.84558234 | AF18: 28.60249399 | AG18: 29.37454387 | AH18: 30.16203474 | AI18: 30.96527544 | AJ18: 31.78458095 | AK18: 32.62027257
C19: After-tax Cash Flow | G19: =G10-G18 -> -1000 | H19: =H10-H18 -> 66 | I19: 67.12 | J19: 68.2624 | K19: 69.427648 | L19: 70.61620096 | M19: 71.82852498 | N19: 73.06509548 | O19: 74.32639739 | P19: 75.61292534 | Q19: 76.92518384 | R19: 78.26368752 | S19: 79.62896127 | T19: 81.0215405 | U19: 82.44197131 | V19: 83.89081073 | W19: 85.36862695 | X19: 86.87599949 | Y19: 88.41351947 | Z19: 89.98178986 | AA19: 91.58142566 | AB19: 93.21305417 | AC19: 94.87731526 | AD19: 96.57486156 | AE19: 98.30635879 | AF19: 100.072486 | AG19: 101.8739357 | AH19: 103.7114144 | AI19: 105.5856427 | AJ19: 107.4973555 | AK19: 109.4473027
C20: After-tax Project IRR | E20: =IRR(19:19) -> 0.0679690197
B22: Financing Assumptions
C23: Max Debt to Capital | E23: =G23/100 -> 0.75 | G23: 75
C24: Target DSCR | E24: =G24/10 -> 1.4 | G24: 14
E25: 0 | F25: 1 | G25: 5 | H25: 10
C26: Interest Rate | E26: =J26/1000 -> 0.03 | F26: =E26+0.25% -> 0.0325 | G26: =F26+0.25% -> 0.035 | H26: 0.0375 | J26: 30
C27: Grace Period | E27: 0
C28: Tenor | E28: 15
C30: Sculpting | E30: TRUE
C31: Equal Instrallment | E31: =NOT(E30) -> FALSE
A33: Debt Size
C34: Max Debt to Cap | E34: =E23*G7 -> 750
C35: DSCR Target | E35: =Comp_1 -> 644.6358643
D36: Final | E36: =MIN(E34:E35) -> 644.6358643
D37: Method | E37: =IF(ABS(E36-E34)>1,"DSCR Constraint","Max Gear Constraint") -> DSCR Constraint
B39: Debt Size from Sculpting
C40: EBITDA | H40: =H10 -> 80 | I40: 81.6 | J40: 83.232 | K40: 84.89664 | L40: 86.5945728 | M40: 88.32646426 | N40: 90.09299354 | O40: 91.89485341 | P40: 93.73275048 | Q40: 95.60740549 | R40: 97.5195536 | S40: 99.46994467 | T40: 101.4593436 | U40: 103.4885304 | V40: 105.558301 | W40: 107.6694671 | X40: 109.8228564 | Y40: 112.0193135 | Z40: 114.2596998 | AA40: 116.5448938 | AB40: 118.8757917 | AC40: 121.2533075 | AD40: 123.6783737 | AE40: 126.1519411 | AF40: 128.67498 | AG40: 131.2484796 | AH40: 133.8734491 | AI40: 136.5509181 | AJ40: 139.2819365 | AK40: 142.0675752
C41: Less: Taxes | H41: =H79 -> 7.714800323 | I41: =I79 -> 8.493946117 | J41: 9.298130813 | K41: 10.12809665 | L41: 10.60047113 | M41: 11.5017678 | N41: 12.43304581 | O41: 13.39523355 | P41: 14.38928703 | Q41: 15.18290275 | R41: 16.27159105 | S41: 17.39768347 | T41: 18.56238863 | U41: 19.7669529 | V41: 21.01266153 | W41: 22.30083986 | X41: 22.94685666 | Y41: 23.6057938 | Z41: 24.27790968 | AA41: 24.96346788 | AB41: 25.66273724 | AC41: 26.37599199 | AD41: 27.10351183 | AE41: 27.84558208 | AF41: 28.60249372 | AG41: 29.3745436 | AH41: 30.16203448 | AI41: 30.96527518 | AJ41: 31.78458068 | AK41: 32.6202723
C42: CFADS | H42: =H40-H41 -> 72.28519968 | I42: =I40-I41 -> 73.10605388 | J42: 73.93386919 | K42: 74.76854335 | L42: 75.99410167 | M42: 76.82469645 | N42: 77.65994773 | O42: 78.49961986 | P42: 79.34346345 | Q42: 80.42450274 | R42: 81.24796255 | S42: 82.0722612 | T42: 82.89695493 | U42: 83.72157754 | V42: 84.54563952 | W42: 85.36862721 | X42: 86.87599975 | Y42: 88.41351974 | Z42: 89.98179013 | AA42: 91.58142593 | AB42: 93.21305444 | AC42: 94.87731552 | AD42: 96.57486183 | AE42: 98.30635906 | AF42: 100.0724862 | AG42: 101.873936 | AH42: 103.7114147 | AI42: 105.585643 | AJ42: 107.4973558 | AK42: 109.4473029
C44: Cash Flow over Repayment Period | H44: =IF(H5,H42) -> 72.28519968 | I44: 73.10605388 | J44: 73.93386919 | K44: 74.76854335 | L44: 75.99410167 | M44: 76.82469645 | N44: 77.65994773 | O44: 78.49961986 | P44: 79.34346345 | Q44: 80.42450274 | R44: 81.24796255 | S44: 82.0722612 | T44: 82.89695493 | U44: 83.72157754 | V44: 84.54563952 | W44: FALSE | X44: FALSE | Y44: FALSE | Z44: FALSE | AA44: FALSE | AB44: FALSE | AC44: FALSE | AD44: FALSE | AE44: FALSE | AF44: FALSE | AG44: FALSE | AH44: FALSE | AI44: FALSE | AJ44: FALSE | AK44: FALSE
C45: Interest Rate | H45: =LOOKUP(H4,25:25,26:26) -> 0.0325 | I45: 0.0325 | J45: 0.0325 | K45: 0.0325 | L45: 0.035 | M45: 0.035 | N45: 0.035 | O45: 0.035 | P45: 0.035 | Q45: 0.0375 | R45: 0.0375 | S45: 0.0375 | T45: 0.0375 | U45: 0.0375 | V45: 0.0375 | W45: 0.0375 | X45: 0.0375 | Y45: 0.0375 | Z45: 0.0375 | AA45: 0.0375 | AB45: 0.0375 | AC45: 0.0375 | AD45: 0.0375 | AE45: 0.0375 | AF45: 0.0375 | AG45: 0.0375 | AH45: 0.0375 | AI45: 0.0375 | AJ45: 0.0375 | AK45: 0.0375
C46: Interest Rate Index | G46: 1 | H46: =G46*(1+H45*H5) -> 1.0325 | I46: 1.06605625 | J46: 1.100703078 | K46: 1.136475928 | L46: 1.176252586 | M46: 1.217421426 | N46: 1.260031176 | O46: 1.304132267 | P46: 1.349776897 | Q46: 1.40039353 | R46: 1.452908288 | S46: 1.507392348 | T46: 1.563919561 | U46: 1.622566545 | V46: 1.68341279 | W46: 1.68341279 | X46: 1.68341279 | Y46: 1.68341279 | Z46: 1.68341279 | AA46: 1.68341279 | AB46: 1.68341279 | AC46: 1.68341279 | AD46: 1.68341279 | AE46: 1.68341279 | AF46: 1.68341279 | AG46: 1.68341279 | AH46: 1.68341279 | AI46: 1.68341279 | AJ46: 1.68341279 | AK46: 1.68341279
C47: NPV of Cash Flow over Repayment Period | E47: =SUMPRODUCT(H44:AK44/H46:AK46) -> 902.4901904
C48: Target DSCR | E48: =E24 -> 1.4
C49: LLCR Using Max Debt to Cap | E49: =F55 -> 1.203320265
C50: Target DSCR Applied | E50: =MAX(E49,E24) -> 1.4
C52: Target Debt Service | F52: =E50 -> 1.4 | H52: =IF(H5,H44/$F$52) -> 51.63228548 | I52: 52.21860992 | J52: 52.80990656 | K52: 53.40610239 | L52: 54.28150119 | M52: 54.87478318 | N52: 55.47139124 | O52: 56.07115704 | P52: 56.67390246 | Q52: 57.44607338 | R52: 58.03425896 | S52: 58.62304371 | T52: 59.21211066 | U52: 59.80112681 | V52: 60.38974251 | W52: FALSE | X52: FALSE | Y52: FALSE | Z52: FALSE | AA52: FALSE | AB52: FALSE | AC52: FALSE | AD52: FALSE | AE52: FALSE | AF52: FALSE | AG52: FALSE | AH52: FALSE | AI52: FALSE | AJ52: FALSE | AK52: FALSE
C53: NPV of Debt Service | E53: =E55 -> 644.6358643 | F53: =SUMPRODUCT(H52:AK52/H46:AK46) -> 644.6358503
D55: Function Outputs | E55: =debt_sculpt(4:4,E48,E34,45:45,5:5,40:40,E15,16:16) -> 644.6358643 | F55: 1.203320265
A57: Project Finance Model
B58: Capital Expenditures - Uses | G58: =G7 -> 1000
B60: Debt | G60: =E36 -> 644.6358643
B61: Equity | G61: =G58-G60 -> 355.3641357
C62: Total Sources | G62: =SUM(G60:G61) -> 1000
B64: Debt Schedule
C65: Opening Balance | H65: =G67 -> 644.6358643 | I65: =H67 -> 613.9542444 | J65: 581.6891474 | K65: 547.7841381 | L65: 512.1810202 | M65: 475.8258547 | N65: 437.6049765 | O65: 397.4497594 | P65: 355.2893439 | Q65: 311.0505685 | R65: 265.2688914 | S65: 217.1822159 | T65: 166.7035053 | U65: 113.7427761 | V65: 58.20700337 | W65: 2.348308342e-05 | X65: 2.348308342e-05 | Y65: 2.348308342e-05 | Z65: 2.348308342e-05 | AA65: 2.348308342e-05 | AB65: 2.348308342e-05 | AC65: 2.348308342e-05 | AD65: 2.348308342e-05 | AE65: 2.348308342e-05 | AF65: 2.348308342e-05 | AG65: 2.348308342e-05 | AH65: 2.348308342e-05 | AI65: 2.348308342e-05 | AJ65: 2.348308342e-05 | AK65: 2.348308342e-05
C66: Less: Repayment | H66: =(H52-H69)*H5 -> 30.68161989 | I66: 32.26509697 | J66: 33.90500927 | K66: 35.6031179 | L66: 36.35516549 | M66: 38.22087827 | N66: 40.15521706 | O66: 42.16041547 | P66: 44.23877542 | Q66: 45.78167707 | R66: 48.08667553 | S66: 50.47871062 | T66: 52.96072922 | U66: 55.53577271 | V66: 58.20697989 | W66: 0 | X66: 0 | Y66: 0 | Z66: 0 | AA66: 0 | AB66: 0 | AC66: 0 | AD66: 0 | AE66: 0 | AF66: 0 | AG66: 0 | AH66: 0 | AI66: 0 | AJ66: 0 | AK66: 0
C67: Closing Balance | G67: =G60 -> 644.6358643 | H67: =H65-H66 -> 613.9542444 | I67: =I65-I66 -> 581.6891474 | J67: 547.7841381 | K67: 512.1810202 | L67: 475.8258547 | M67: 437.6049765 | N67: 397.4497594 | O67: 355.2893439 | P67: 311.0505685 | Q67: 265.2688914 | R67: 217.1822159 | S67: 166.7035053 | T67: 113.7427761 | U67: 58.20700337 | V67: 2.348308342e-05 | W67: 2.348308342e-05 | X67: 2.348308342e-05 | Y67: 2.348308342e-05 | Z67: 2.348308342e-05 | AA67: 2.348308342e-05 | AB67: 2.348308342e-05 | AC67: 2.348308342e-05 | AD67: 2.348308342e-05 | AE67: 2.348308342e-05 | AF67: 2.348308342e-05 | AG67: 2.348308342e-05 | AH67: 2.348308342e-05 | AI67: 2.348308342e-05 | AJ67: 2.348308342e-05 | AK67: 2.348308342e-05
C68: Interest Rate | H68: =LOOKUP(H4,25:25,26:26) -> 0.0325 | I68: 0.0325 | J68: 0.0325 | K68: 0.0325 | L68: 0.035 | M68: 0.035 | N68: 0.035 | O68: 0.035 | P68: 0.035 | Q68: 0.0375 | R68: 0.0375 | S68: 0.0375 | T68: 0.0375 | U68: 0.0375 | V68: 0.0375 | W68: 0.0375 | X68: 0.0375 | Y68: 0.0375 | Z68: 0.0375 | AA68: 0.0375 | AB68: 0.0375 | AC68: 0.0375 | AD68: 0.0375 | AE68: 0.0375 | AF68: 0.0375 | AG68: 0.0375 | AH68: 0.0375 | AI68: 0.0375 | AJ68: 0.0375 | AK68: 0.0375
C69: Interest Expense | H69: =H68*H65 -> 20.95066559 | I69: =I68*I65 -> 19.95351294 | J69: 18.90489729 | K69: 17.80298449 | L69: 17.92633571 | M69: 16.65390492 | N69: 15.31617418 | O69: 13.91074158 | P69: 12.43512704 | Q69: 11.66439632 | R69: 9.947583429 | S69: 8.144333097 | T69: 6.251381449 | U69: 4.265354103 | V69: 2.182762626 | W69: 8.806156284e-07 | X69: 8.806156284e-07 | Y69: 8.806156284e-07 | Z69: 8.806156284e-07 | AA69: 8.806156284e-07 | AB69: 8.806156284e-07 | AC69: 8.806156284e-07 | AD69: 8.806156284e-07 | AE69: 8.806156284e-07 | AF69: 8.806156284e-07 | AG69: 8.806156284e-07 | AH69: 8.806156284e-07 | AI69: 8.806156284e-07 | AJ69: 8.806156284e-07 | AK69: 8.806156284e-07
C71: Ending Balance Test | E71: =">"&F5 -> >15 | F71: =ROUND(SUMIF(4:4,E71,67:67),2)=0 -> TRUE
A73: Profit and Loss
B74: EBITDA | H74: =H9 -> 80 | I74: 81.6 | J74: 83.232 | K74: 84.89664 | L74: 86.5945728 | M74: 88.32646426 | N74: 90.09299354 | O74: 91.89485341 | P74: 93.73275048 | Q74: 95.60740549 | R74: 97.5195536 | S74: 99.46994467 | T74: 101.4593436 | U74: 103.4885304 | V74: 105.558301 | W74: 107.6694671 | X74: 109.8228564 | Y74: 112.0193135 | Z74: 114.2596998 | AA74: 116.5448938 | AB74: 118.8757917 | AC74: 121.2533075 | AD74: 123.6783737 | AE74: 126.1519411 | AF74: 128.67498 | AG74: 131.2484796 | AH74: 133.8734491 | AI74: 136.5509181 | AJ74: 139.2819365 | AK74: 142.0675752
B75: Less: Depreciation | H75: =H16 -> 33.33333333 | I75: 33.33333333 | J75: 33.33333333 | K75: 33.33333333 | L75: 33.33333333 | M75: 33.33333333 | N75: 33.33333333 | O75: 33.33333333 | P75: 33.33333333 | Q75: 33.33333333 | R75: 33.33333333 | S75: 33.33333333 | T75: 33.33333333 | U75: 33.33333333 | V75: 33.33333333 | W75: 33.33333333 | X75: 33.33333333 | Y75: 33.33333333 | Z75: 33.33333333 | AA75: 33.33333333 | AB75: 33.33333333 | AC75: 33.33333333 | AD75: 33.33333333 | AE75: 33.33333333 | AF75: 33.33333333 | AG75: 33.33333333 | AH75: 33.33333333 | AI75: 33.33333333 | AJ75: 33.33333333 | AK75: 33.33333333
B76: EBIT | H76: =H74-H75 -> 46.66666667 | I76: =I74-I75 -> 48.26666667 | J76: 49.89866667 | K76: 51.56330667 | L76: 53.26123947 | M76: 54.99313092 | N76: 56.75966021 | O76: 58.56152008 | P76: 60.39941715 | Q76: 62.27407216 | R76: 64.18622027 | S76: 66.13661134 | T76: 68.12601023 | U76: 70.1551971 | V76: 72.22496771 | W76: 74.33613373 | X76: 76.48952307 | Y76: 78.6859802 | Z76: 80.92636647 | AA76: 83.21156047 | AB76: 85.54245834 | AC76: 87.91997418 | AD76: 90.34504033 | AE76: 92.8186078 | AF76: 95.34164662 | AG76: 97.91514622 | AH76: 100.5401158 | AI76: 103.2175848 | AJ76: 105.9486032 | AK76: 108.7342419
B77: Less: Interest Expense | H77: =H69 -> 20.95066559 | I77: =I69 -> 19.95351294 | J77: 18.90489729 | K77: 17.80298449 | L77: 17.92633571 | M77: 16.65390492 | N77: 15.31617418 | O77: 13.91074158 | P77: 12.43512704 | Q77: 11.66439632 | R77: 9.947583429 | S77: 8.144333097 | T77: 6.251381449 | U77: 4.265354103 | V77: 2.182762626 | W77: 8.806156284e-07 | X77: 8.806156284e-07 | Y77: 8.806156284e-07 | Z77: 8.806156284e-07 | AA77: 8.806156284e-07 | AB77: 8.806156284e-07 | AC77: 8.806156284e-07 | AD77: 8.806156284e-07 | AE77: 8.806156284e-07 | AF77: 8.806156284e-07 | AG77: 8.806156284e-07 | AH77: 8.806156284e-07 | AI77: 8.806156284e-07 | AJ77: 8.806156284e-07 | AK77: 8.806156284e-07
B78: EBT | H78: =H76-H77 -> 25.71600108 | I78: =I76-I77 -> 28.31315372 | J78: 30.99376938 | K78: 33.76032218 | L78: 35.33490376 | M78: 38.33922601 | N78: 41.44348603 | O78: 44.6507785 | P78: 47.96429011 | Q78: 50.60967584 | R78: 54.23863684 | S78: 57.99227824 | T78: 61.87462878 | U78: 65.889843 | V78: 70.04220509 | W78: 74.33613285 | X78: 76.48952219 | Y78: 78.68597932 | Z78: 80.92636559 | AA78: 83.21155959 | AB78: 85.54245746 | AC78: 87.9199733 | AD78: 90.34503945 | AE78: 92.81860692 | AF78: 95.34164574 | AG78: 97.91514534 | AH78: 100.5401149 | AI78: 103.2175839 | AJ78: 105.9486023 | AK78: 108.734241
B79: Taxes | F79: =E15 -> 0.3 | H79: =$F$79*H78 -> 7.714800323 | I79: =$F$79*I78 -> 8.493946117 | J79: 9.298130813 | K79: 10.12809665 | L79: 10.60047113 | M79: 11.5017678 | N79: 12.43304581 | O79: 13.39523355 | P79: 14.38928703 | Q79: 15.18290275 | R79: 16.27159105 | S79: 17.39768347 | T79: 18.56238863 | U79: 19.7669529 | V79: 21.01266153 | W79: 22.30083986 | X79: 22.94685666 | Y79: 23.6057938 | Z79: 24.27790968 | AA79: 24.96346788 | AB79: 25.66273724 | AC79: 26.37599199 | AD79: 27.10351183 | AE79: 27.84558208 | AF79: 28.60249372 | AG79: 29.3745436 | AH79: 30.16203448 | AI79: 30.96527518 | AJ79: 31.78458068 | AK79: 32.6202723
B80: Income | H80: =H78-H79 -> 18.00120075 | I80: =I78-I79 -> 19.81920761 | J80: 21.69563856 | K80: 23.63222552 | L80: 24.73443263 | M80: 26.83745821 | N80: 29.01044022 | O80: 31.25554495 | P80: 33.57500308 | Q80: 35.42677309 | R80: 37.96704579 | S80: 40.59459477 | T80: 43.31224015 | U80: 46.1228901 | V80: 49.02954356 | W80: 52.035293 | X80: 53.54266554 | Y80: 55.08018553 | Z80: 56.64845591 | AA80: 58.24809171 | AB80: 59.87972023 | AC80: 61.54398131 | AD80: 63.24152761 | AE80: 64.97302484 | AF80: 66.73915202 | AG80: 68.54060174 | AH80: 70.37808045 | AI80: 72.25230874 | AJ80: 74.1640216 | AK80: 76.11396871
A82: DSCR
B83: Cash Flow | H83: =H42 -> 72.28519968 | I83: 73.10605388 | J83: 73.93386919 | K83: 74.76854335 | L83: 75.99410167 | M83: 76.82469645 | N83: 77.65994773 | O83: 78.49961986 | P83: 79.34346345 | Q83: 80.42450274 | R83: 81.24796255 | S83: 82.0722612 | T83: 82.89695493 | U83: 83.72157754 | V83: 84.54563952 | W83: 85.36862721 | X83: 86.87599975 | Y83: 88.41351974 | Z83: 89.98179013 | AA83: 91.58142593 | AB83: 93.21305444 | AC83: 94.87731552 | AD83: 96.57486183 | AE83: 98.30635906 | AF83: 100.0724862 | AG83: 101.873936 | AH83: 103.7114147 | AI83: 105.585643 | AJ83: 107.4973558 | AK83: 109.4473029
B84: Debt Service | H84: =H66+H69 -> 51.63228548 | I84: =I66+I69 -> 52.21860992 | J84: 52.80990656 | K84: 53.40610239 | L84: 54.28150119 | M84: 54.87478318 | N84: 55.47139124 | O84: 56.07115704 | P84: 56.67390246 | Q84: 57.44607338 | R84: 58.03425896 | S84: 58.62304371 | T84: 59.21211066 | U84: 59.80112681 | V84: 60.38974251 | W84: 8.806156284e-07 | X84: 8.806156284e-07 | Y84: 8.806156284e-07 | Z84: 8.806156284e-07 | AA84: 8.806156284e-07 | AB84: 8.806156284e-07 | AC84: 8.806156284e-07 | AD84: 8.806156284e-07 | AE84: 8.806156284e-07 | AF84: 8.806156284e-07 | AG84: 8.806156284e-07 | AH84: 8.806156284e-07 | AI84: 8.806156284e-07 | AJ84: 8.806156284e-07 | AK84: 8.806156284e-07
C85: DSCR | F85: =MIN(H85:AK85) -> 1.4 | H85: =IF(H84>0.1,H83/H84) -> 1.4 | I85: =IF(I84>0.1,I83/I84) -> 1.4 | J85: 1.4 | K85: 1.4 | L85: 1.4 | M85: 1.4 | N85: 1.4 | O85: 1.4 | P85: 1.4 | Q85: 1.4 | R85: 1.4 | S85: 1.4 | T85: 1.4 | U85: 1.4 | V85: 1.4 | W85: FALSE | X85: FALSE | Y85: FALSE | Z85: FALSE | AA85: FALSE | AB85: FALSE | AC85: FALSE | AD85: FALSE | AE85: FALSE | AF85: FALSE | AG85: FALSE | AH85: FALSE | AI85: FALSE | AJ85: FALSE | AK85: FALSE
A87: Equity Return
B88: Equity Cash Flow | G88: =-G61 -> -355.3641357 | H88: =H9-H66-H69-H79 -> 20.65291419 | I88: 20.88744397 | J88: 21.12396262 | K88: 21.36244096 | L88: 21.71260048 | M88: 21.94991327 | N88: 22.18855649 | O88: 22.42846282 | P88: 22.66956098 | Q88: 22.97842935 | R88: 23.21370359 | S88: 23.44921749 | T88: 23.68484427 | U88: 23.92045072 | V88: 24.15589701 | W88: 85.36862633 | X88: 86.87599887 | Y88: 88.41351886 | Z88: 89.98178925 | AA88: 91.58142505 | AB88: 93.21305356 | AC88: 94.87731464 | AD88: 96.57486095 | AE88: 98.30635818 | AF88: 100.0724854 | AG88: 101.8739351 | AH88: 103.7114138 | AI88: 105.5856421 | AJ88: 107.4973549 | AK88: 109.447302
B89: Equity IRR | E89: =IRR(88:88) -> 0.09621084268
A91: Debt IRR
B92: Pre-tax Debt Cash Flow | G92: =-G67 -> -644.6358643 | H92: =H84 -> 51.63228548 | I92: =I84 -> 52.21860992 | J92: 52.80990656 | K92: 53.40610239 | L92: 54.28150119 | M92: 54.87478318 | N92: 55.47139124 | O92: 56.07115704 | P92: 56.67390246 | Q92: 57.44607338 | R92: 58.03425896 | S92: 58.62304371 | T92: 59.21211066 | U92: 59.80112681 | V92: 60.38974251 | W92: 8.806156284e-07 | X92: 8.806156284e-07 | Y92: 8.806156284e-07 | Z92: 8.806156284e-07 | AA92: 8.806156284e-07 | AB92: 8.806156284e-07 | AC92: 8.806156284e-07 | AD92: 8.806156284e-07 | AE92: 8.806156284e-07 | AF92: 8.806156284e-07 | AG92: 8.806156284e-07 | AH92: 8.806156284e-07 | AI92: 8.806156284e-07 | AJ92: 8.806156284e-07 | AK92: 8.806156284e-07
B93: Pre-tax Debt IRR | E93: =IRR(92:92) -> 0.03423511745
B94: After-tax Debt Cash Flow | G94: =G92 -> -644.6358643 | H94: =H92-H77*$F$79 -> 45.34708581 | I94: =I92-I77*$F$79 -> 46.23255603 | J94: 47.13843738 | K94: 48.06520704 | L94: 48.90360048 | M94: 49.87861171 | N94: 50.87653898 | O94: 51.89793457 | P94: 52.94336435 | Q94: 53.94675449 | R94: 55.04998393 | S94: 56.17974378 | T94: 57.33669623 | U94: 58.52152058 | V94: 59.73491373 | W94: 6.164309399e-07 | X94: 6.164309399e-07 | Y94: 6.164309399e-07 | Z94: 6.164309399e-07 | AA94: 6.164309399e-07 | AB94: 6.164309399e-07 | AC94: 6.164309399e-07 | AD94: 6.164309399e-07 | AE94: 6.164309399e-07 | AF94: 6.164309399e-07 | AG94: 6.164309399e-07 | AH94: 6.164309399e-07 | AI94: 6.164309399e-07 | AJ94: 6.164309399e-07 | AK94: 6.164309399e-07
B95: After-tax Debt IRR | E95: =IRR(94:94) -> 0.02400776739
B97: Debt Sizing Method Applied:
B98: =E37 -> DSCR Constraint
D100: Project IRR | E100: =E11 -> 0.08867085085 | M100: DSCR Constraint | N100: =E24 -> 1.4
D101: EBITDA | E101: =H9 -> 80 | M101: Debt/Cap Constraint | N101: =E23 -> 0.75
D102: Debt Size | E102: =E36 -> 644.6358643 | M102: Grace Period | N102: =E27 -> 0
D103: Equity IRR | E103: =E89 -> 0.09621084268 | M103: Loan Tenor | N103: =E28 -> 15
D105: Resulting DSCR | E105: =J2 -> 1.4
D106: Resulting Debt to Cap | E106: =J3 -> 0.6446358643 | M106: Target Equity IRR | N106: =Y106/100 -> 0.11 | Y106: 11
M107: Actual IRR | N107: =E89 -> 0.09621084268
D108: Project IRR | E108: =M1 -> 0.08867085085 | M108: Differ | N108: =N106-N107 -> 0.01378915732
D109: Interest Rate | E109: =E26 -> 0.03
D117: Method:

Sheet Simple Separate DSCR Gear
A1: Sculpting and Grace Periods | H1: Debt to Capital | J1: =E18 -> 0.86 | K1: Target DSCR | M1: =E19 -> 1.2 | N1: Min DSCR | O1: =E63 -> 1.191302387
H2: Project IRR | J2: =E11 -> 0.06223721794 | K2: Equity IRR | M2: =E75 -> 0.1068205823 | N2: Debt/Cap | O2: =F47 -> 0.86
C3: Period | G3: 0 | H3: 1 | I3: 2 | J3: 3 | K3: 4 | L3: 5 | M3: 6 | N3: 7 | O3: 8 | P3: 9 | Q3: 10 | R3: 11 | S3: 12 | T3: 13 | U3: 14 | V3: 15 | W3: 16 | X3: 17 | Y3: 18 | Z3: 19 | AA3: 20 | AB3: 21 | AC3: 22 | AD3: 23 | AE3: 24 | AF3: 25 | AG3: 26 | AH3: 27 | AI3: 28 | AJ3: 29 | AK3: 30
C4: Repayment Switch | E4: =E23 -> 0 | F4: =E4+E24 -> 23 | G4: =COUNTIF(H4:AK4,TRUE) -> 23 | H4: =AND(H3>$E$4,H3<=$F$4) -> TRUE | I4: =AND(I3>$E$4,I3<=$F$4) -> TRUE | J4: TRUE | K4: TRUE | L4: TRUE | M4: TRUE | N4: TRUE | O4: TRUE | P4: TRUE | Q4: TRUE | R4: TRUE | S4: TRUE | T4: TRUE | U4: TRUE | V4: TRUE | W4: TRUE | X4: TRUE | Y4: TRUE | Z4: TRUE | AA4: TRUE | AB4: TRUE | AC4: TRUE | AD4: TRUE | AE4: FALSE | AF4: FALSE | AG4: FALSE | AH4: FALSE | AI4: FALSE | AJ4: FALSE | AK4: FALSE
A6: Operations
C7: Capital Expenditures | G7: 1000
C8: Growth | G8: 0.02
C9: EBITDA | H9: 60 | I9: =H9*(1+$G$8) -> 61.2 | J9: =I9*(1+$G$8) -> 62.424 | K9: 63.67248 | L9: 64.9459296 | M9: 66.24484819 | N9: 67.56974516 | O9: 68.92114006 | P9: 70.29956286 | Q9: 71.70555412 | R9: 73.1396652 | S9: 74.6024585 | T9: 76.09450767 | U9: 77.61639783 | V9: 79.16872578 | W9: 80.7521003 | X9: 82.36714231 | Y9: 84.01448515 | Z9: 85.69477485 | AA9: 87.40867035 | AB9: 89.15684376 | AC9: 90.93998063 | AD9: 92.75878025 | AE9: 94.61395585 | AF9: 96.50623497 | AG9: 98.43635967 | AH9: 100.4050869 | AI9: 102.4131886 | AJ9: 104.4614524 | AK9: 106.5506814
C10: Net Cash Flow | G10: =G9-G7 -> -1000 | H10: =H9-H7 -> 60 | I10: 61.2 | J10: 62.424 | K10: 63.67248 | L10: 64.9459296 | M10: 66.24484819 | N10: 67.56974516 | O10: 68.92114006 | P10: 70.29956286 | Q10: 71.70555412 | R10: 73.1396652 | S10: 74.6024585 | T10: 76.09450767 | U10: 77.61639783 | V10: 79.16872578 | W10: 80.7521003 | X10: 82.36714231 | Y10: 84.01448515 | Z10: 85.69477485 | AA10: 87.40867035 | AB10: 89.15684376 | AC10: 90.93998063 | AD10: 92.75878025 | AE10: 94.61395585 | AF10: 96.50623497 | AG10: 98.43635967 | AH10: 100.4050869 | AI10: 102.4131886 | AJ10: 104.4614524 | AK10: 106.5506814
C11: Project IRR | E11: =IRR(10:10) -> 0.06223721794
A13: Financing Assumptions
C14: Debt to Project Cost Constraint | E14: TRUE
C15: Target DSCR Constraint | E15: FALSE
C18: Max Debt to Capital | E18: =G18/100 -> 0.86 | G18: 86
C19: Target DSCR | E19: =G19/10 -> 1.2 | G19: 12
E20: 0 | F20: 1 | G20: 5 | H20: 10
C21: Interest Rate | E21: 0.04 | F21: =E21+0.25% -> 0.0425 | G21: =F21+0.25% -> 0.045 | H21: 0.0475
C23: Grace Period | E23: 0
C24: Tenor | E24: 23
A26: Debt Size
C27: Max Debt to Cap | E27: =E18*G7 -> 860
C28: DSCR Target | E28: =F41 -> 860
D29: Final | E29: =IF(E14,E27,E28) -> 860
B32: Sculpted Debt Sizing
C33: Cash Flow over Repayment | H33: =IF(H4,H9) -> 60 | I33: 61.2 | J33: 62.424 | K33: 63.67248 | L33: 64.9459296 | M33: 66.24484819 | N33: 67.56974516 | O33: 68.92114006 | P33: 70.29956286 | Q33: 71.70555412 | R33: 73.1396652 | S33: 74.6024585 | T33: 76.09450767 | U33: 77.61639783 | V33: 79.16872578 | W33: 80.7521003 | X33: 82.36714231 | Y33: 84.01448515 | Z33: 85.69477485 | AA33: 87.40867035 | AB33: 89.15684376 | AC33: 90.93998063 | AD33: 92.75878025 | AE33: FALSE | AF33: FALSE | AG33: FALSE | AH33: FALSE | AI33: FALSE | AJ33: FALSE | AK33: FALSE
C34: Interest Rate | H34: =LOOKUP(H3,20:20,21:21) -> 0.0425 | I34: 0.0425 | J34: 0.0425 | K34: 0.0425 | L34: 0.045 | M34: 0.045 | N34: 0.045 | O34: 0.045 | P34: 0.045 | Q34: 0.0475 | R34: 0.0475 | S34: 0.0475 | T34: 0.0475 | U34: 0.0475 | V34: 0.0475 | W34: 0.0475 | X34: 0.0475 | Y34: 0.0475 | Z34: 0.0475 | AA34: 0.0475 | AB34: 0.0475 | AC34: 0.0475 | AD34: 0.0475 | AE34: 0.0475 | AF34: 0.0475 | AG34: 0.0475 | AH34: 0.0475 | AI34: 0.0475 | AJ34: 0.0475 | AK34: 0.0475
C35: Interest Rate Index | G35: 1 | H35: =G35*(1+H34*H4) -> 1.0425 | I35: 1.08680625 | J35: 1.132995516 | K35: 1.181147825 | L35: 1.234299477 | M35: 1.289842954 | N35: 1.347885887 | O35: 1.408540751 | P35: 1.471925085 | Q35: 1.541841527 | R35: 1.615078999 | S35: 1.691795252 | T35: 1.772155526 | U35: 1.856332914 | V35: 1.944508727 | W35: 2.036872892 | X35: 2.133624354 | Y35: 2.234971511 | Z35: 2.341132658 | AA35: 2.452336459 | AB35: 2.568822441 | AC35: 2.690841507 | AD35: 2.818656478 | AE35: 2.818656478 | AF35: 2.818656478 | AG35: 2.818656478 | AH35: 2.818656478 | AI35: 2.818656478 | AJ35: 2.818656478 | AK35: 2.818656478
C36: NPV of Cash Flow over Repayment Period | E36: =SUMPRODUCT(H33:AK33/H35:AK35) -> 1024.520053
C37: LLCR Using Max Debt to Cap | E37: =E36/E27 -> 1.191302387
C38: Target DSCR Applied | E38: =IF(E14,E37,E19) -> 1.191302387
C40: Target Debt Service | F40: =IF(E14,E37,E38) -> 1.191302387 | H40: =IF(H4,H9/$F$40) -> 50.3650464 | I40: 51.37234733 | J40: 52.39979427 | K40: 53.44779016 | L40: 54.51674596 | M40: 55.60708088 | N40: 56.7192225 | O40: 57.85360695 | P40: 59.01067909 | Q40: 60.19089267 | R40: 61.39471052 | S40: 62.62260473 | T40: 63.87505683 | U40: 65.15255797 | V40: 66.45560912 | W40: 67.78472131 | X40: 69.14041573 | Y40: 70.52322405 | Z40: 71.93368853 | AA40: 73.3723623 | AB40: 74.83980955 | AC40: 76.33660574 | AD40: 77.86333785 | AE40: FALSE | AF40: FALSE | AG40: FALSE | AH40: FALSE | AI40: FALSE | AJ40: FALSE | AK40: FALSE
C41: NPV of Debt Service | F41: =SUMPRODUCT(H40:AK40/H35:AK35) -> 860
A43: Project Finance Model
B44: Capital Expenditue - Uses | G44: =G7 -> 1000
B46: Sources
C47: Debt | F47: =G47/G49 -> 0.86 | G47: =E29 -> 860
C48: Equity | F48: =G48/G49 -> 0.14 | G48: =G44-G47 -> 140
D49: Total | G49: =SUM(G47:G48) -> 1000
B51: Debt Schedule
C52: Opening Balance | H52: =G54 -> 860 | I52: =H54 -> 846.1849536 | J52: 830.7754668 | K52: 813.6836299 | L52: 794.817394 | M52: 776.0674307 | N52: 755.3833842 | O52: 732.656414 | P52: 707.7723457 | Q52: 680.6114222 | R52: 652.7495721 | S52: 622.3604662 | T52: 589.2999836 | U52: 553.416676 | V52: 514.5514102 | W52: 472.536993 | X52: 427.1977789 | Y52: 378.3492577 | Z52: 325.7976234 | AA52: 269.3393219 | AB52: 208.7605774 | AC52: 143.8368953 | AD52: 74.3325421 | AE52: -1.151079232e-12 | AF52: -1.151079232e-12 | AG52: -1.151079232e-12 | AH52: -1.151079232e-12 | AI52: -1.151079232e-12 | AJ52: -1.151079232e-12 | AK52: -1.151079232e-12
C53: Less: Repayment | H53: =(H40-H56)*H4 -> 13.8150464 | I53: 15.4094868 | J53: 17.09183693 | K53: 18.86623589 | L53: 18.74996323 | M53: 20.6840465 | N53: 22.72697021 | O53: 24.88406832 | P53: 27.16092353 | Q53: 27.86185012 | R53: 30.38910585 | S53: 33.06048259 | T53: 35.88330761 | U53: 38.86526585 | V53: 42.01441714 | W53: 45.33921414 | X53: 48.84852124 | Y53: 52.55163431 | Z53: 56.45830142 | AA53: 60.57874451 | AB53: 64.92368212 | AC53: 69.50435321 | AD53: 74.3325421 | AE53: 0 | AF53: 0 | AG53: 0 | AH53: 0 | AI53: 0 | AJ53: 0 | AK53: 0
C54: Closing Balance | G54: =G47 -> 860 | H54: =H52-H53 -> 846.1849536 | I54: =I52-I53 -> 830.7754668 | J54: 813.6836299 | K54: 794.817394 | L54: 776.0674307 | M54: 755.3833842 | N54: 732.656414 | O54: 707.7723457 | P54: 680.6114222 | Q54: 652.7495721 | R54: 622.3604662 | S54: 589.2999836 | T54: 553.416676 | U54: 514.5514102 | V54: 472.536993 | W54: 427.1977789 | X54: 378.3492577 | Y54: 325.7976234 | Z54: 269.3393219 | AA54: 208.7605774 | AB54: 143.8368953 | AC54: 74.3325421 | AD54: -1.151079232e-12 | AE54: -1.151079232e-12 | AF54: -1.151079232e-12 | AG54: -1.151079232e-12 | AH54: -1.151079232e-12 | AI54: -1.151079232e-12 | AJ54: -1.151079232e-12 | AK54: -1.151079232e-12
C55: Interest Rate | H55: =LOOKUP(H3,20:20,21:21) -> 0.0425 | I55: 0.0425 | J55: 0.0425 | K55: 0.0425 | L55: 0.045 | M55: 0.045 | N55: 0.045 | O55: 0.045 | P55: 0.045 | Q55: 0.0475 | R55: 0.0475 | S55: 0.0475 | T55: 0.0475 | U55: 0.0475 | V55: 0.0475 | W55: 0.0475 | X55: 0.0475 | Y55: 0.0475 | Z55: 0.0475 | AA55: 0.0475 | AB55: 0.0475 | AC55: 0.0475 | AD55: 0.0475 | AE55: 0.0475 | AF55: 0.0475 | AG55: 0.0475 | AH55: 0.0475 | AI55: 0.0475 | AJ55: 0.0475 | AK55: 0.0475
C56: Interest Expense | H56: =H55*H52 -> 36.55 | I56: =I55*I52 -> 35.96286053 | J56: 35.30795734 | K56: 34.58155427 | L56: 35.76678273 | M56: 34.92303438 | N56: 33.99225229 | O56: 32.96953863 | P56: 31.84975556 | Q56: 32.32904255 | R56: 31.00560467 | S56: 29.56212215 | T56: 27.99174922 | U56: 26.28729211 | V56: 24.44119198 | W56: 22.44550717 | X56: 20.2918945 | Y56: 17.97158974 | Z56: 15.47538711 | AA56: 12.79361779 | AB56: 9.916127428 | AC56: 6.832252527 | AD56: 3.53079575 | AE56: -5.467626352e-14 | AF56: -5.467626352e-14 | AG56: -5.467626352e-14 | AH56: -5.467626352e-14 | AI56: -5.467626352e-14 | AJ56: -5.467626352e-14 | AK56: -5.467626352e-14
C58: Ending Balance Test | F58: =ROUND(SUMIF(3:3,G58,54:54),3)=0 -> TRUE | G58: =">"&F4 -> >23
A60: DSCR
B61: Cash Flow | H61: =H9 -> 60 | I61: 61.2 | J61: 62.424 | K61: 63.67248 | L61: 64.9459296 | M61: 66.24484819 | N61: 67.56974516 | O61: 68.92114006 | P61: 70.29956286 | Q61: 71.70555412 | R61: 73.1396652 | S61: 74.6024585 | T61: 76.09450767 | U61: 77.61639783 | V61: 79.16872578 | W61: 80.7521003 | X61: 82.36714231 | Y61: 84.01448515 | Z61: 85.69477485 | AA61: 87.40867035 | AB61: 89.15684376 | AC61: 90.93998063 | AD61: 92.75878025 | AE61: 94.61395585 | AF61: 96.50623497 | AG61: 98.43635967 | AH61: 100.4050869 | AI61: 102.4131886 | AJ61: 104.4614524 | AK61: 106.5506814
B62: Debt Service | H62: =H53+H56 -> 50.3650464 | I62: =I53+I56 -> 51.37234733 | J62: 52.39979427 | K62: 53.44779016 | L62: 54.51674596 | M62: 55.60708088 | N62: 56.7192225 | O62: 57.85360695 | P62: 59.01067909 | Q62: 60.19089267 | R62: 61.39471052 | S62: 62.62260473 | T62: 63.87505683 | U62: 65.15255797 | V62: 66.45560912 | W62: 67.78472131 | X62: 69.14041573 | Y62: 70.52322405 | Z62: 71.93368853 | AA62: 73.3723623 | AB62: 74.83980955 | AC62: 76.33660574 | AD62: 77.86333785 | AE62: -5.467626352e-14 | AF62: -5.467626352e-14 | AG62: -5.467626352e-14 | AH62: -5.467626352e-14 | AI62: -5.467626352e-14 | AJ62: -5.467626352e-14 | AK62: -5.467626352e-14
E63: =MIN(H63:AK63) -> 1.191302387 | H63: =IF(H62>0.1,H61/H62) -> 1.191302387 | I63: =IF(I62>0.1,I61/I62) -> 1.191302387 | J63: 1.191302387 | K63: 1.191302387 | L63: 1.191302387 | M63: 1.191302387 | N63: 1.191302387 | O63: 1.191302387 | P63: 1.191302387 | Q63: 1.191302387 | R63: 1.191302387 | S63: 1.191302387 | T63: 1.191302387 | U63: 1.191302387 | V63: 1.191302387 | W63: 1.191302387 | X63: 1.191302387 | Y63: 1.191302387 | Z63: 1.191302387 | AA63: 1.191302387 | AB63: 1.191302387 | AC63: 1.191302387 | AD63: 1.191302387 | AE63: FALSE | AF63: FALSE | AG63: FALSE | AH63: FALSE | AI63: FALSE | AJ63: FALSE | AK63: FALSE
A64: Equity Return
B65: Equity Cash Flow | G65: =-G48 -> -140 | H65: =H9-H53-H56 -> 9.634953601 | I65: 9.827652673 | J65: 10.02420573 | K65: 10.22468984 | L65: 10.42918364 | M65: 10.63776731 | N65: 10.85052266 | O65: 11.06753311 | P65: 11.28888377 | Q65: 11.51466145 | R65: 11.74495468 | S65: 11.97985377 | T65: 12.21945085 | U65: 12.46383986 | V65: 12.71311666 | W65: 12.96737899 | X65: 13.22672657 | Y65: 13.4912611 | Z65: 13.76108633 | AA65: 14.03630805 | AB65: 14.31703421 | AC65: 14.6033749 | AD65: 14.8954424 | AE65: 94.61395585 | AF65: 96.50623497 | AG65: 98.43635967 | AH65: 100.4050869 | AI65: 102.4131886 | AJ65: 104.4614524 | AK65: 106.5506814
B66: Equity IRR | E66: =IRR(65:65) -> 0.1068205823
A68: Summary of Results
D70: Actual DSCR | E70: =E63 -> 1.191302387 | I70: DSCR | K70: =E19 -> 1.2
D71: Actual Debt/Cap | E71: =O2 -> 0.86 | I71: Debt to Capital | K71: =E18 -> 0.86
D72: Project IRR | E72: =E11 -> 0.06223721794 | I72: Grace Period | K72: =E23 -> 0
D73: EBITDA | E73: =H9 -> 60 | I73: Tenor | K73: =E24 -> 23
D74: Debt Size | E74: =E29 -> 860
D75: Equity IRR | E75: =E66 -> 0.1068205823
H82: Tenor
G83: =E66 -> 0.1068205823 | H83: 7 | I83: 10 | J83: 15 | K83: 20 | L83: 25
G84: 80 | H84: 0.1098268587 | I84: 0.1225098308 | J84: 0.1543792615 | K84: 0.202853356 | L84: 0.2533773922
E85: EBITDA | G85: =G84-5 -> 75 | H85: 0.09959144741 | I85: 0.1095995771 | J85: 0.1341668833 | K85: 0.1727904917 | L85: 0.218277555
G86: =G85-5 -> 70 | H86: 0.089475093 | I86: 0.09712922197 | J86: 0.1154558416 | K86: 0.1447586294 | L86: 0.1836213628
G87: 65 | H87: 0.07942011501 | I87: 0.08499314035 | J87: 0.09798554728 | K87: 0.1188472684 | L87: 0.1496507337
G88: 60 | H88: 0.06936367678 | I88: 0.07308627875 | J88: 0.0814964941 | K88: 0.09492532698 | L88: 0.116633876
G89: 55 | H89: 0.05923510231 | I89: 0.06130067232 | J89: 0.06573846965 | K89: 0.07269485068 | L89: 0.08476692143
G90: 50 | H90: 0.04895202838 | I90: 0.04952067364 | J90: 0.05046954947 | K90: 0.05176526938 | L90: 0.0540479593
G91: 45 | H91: 0.03841466536 | I91: 0.03761617238 | J91: 0.03544837928 | K91: 0.03170577648 | L91: 0.02419548656
G92: 40 | H92: 0.02749684411 | I92: 0.02543241585 | J92: 0.02042036012 | K92: 0.01206310607 | L92: -0.005355616317
G93: 35 | H93: 0.01603130062 | I93: 0.01277370329 | J93: 0.005095755051 | K93: -0.007652713609 | L93: -0.03542466081
D95: Method: | E95: =E30 -> 0

Sheet Taxes with Copy and Paste Macro
A1: Sculpting and Grace Periods
B2: Operations
C3: Period | H3: 0 | I3: 1 | J3: 2 | K3: 3 | L3: 4 | M3: 5 | N3: 6 | O3: 7 | P3: 8 | Q3: 9 | R3: 10 | S3: 11 | T3: 12 | U3: 13 | V3: 14 | W3: 15 | X3: 16 | Y3: 17 | Z3: 18 | AA3: 19 | AB3: 20 | AC3: 21 | AD3: 22 | AE3: 23 | AF3: 24 | AG3: 25 | AH3: 26 | AI3: 27 | AJ3: 28 | AK3: 29 | AL3: 30
C4: Repayment Switch | E4: =E20 -> 0 | F4: =E4+E21 -> 6 | H4: =COUNTIF(I4:AL4,TRUE) -> 6 | I4: =AND(I3>$E$4,I3<=$F$4) -> TRUE | J4: =AND(J3>$E$4,J3<=$F$4) -> TRUE | K4: TRUE | L4: TRUE | M4: TRUE | N4: TRUE | O4: FALSE | P4: FALSE | Q4: FALSE | R4: FALSE | S4: FALSE | T4: FALSE | U4: FALSE | V4: FALSE | W4: FALSE | X4: FALSE | Y4: FALSE | Z4: FALSE | AA4: FALSE | AB4: FALSE | AC4: FALSE | AD4: FALSE | AE4: FALSE | AF4: FALSE | AG4: FALSE | AH4: FALSE | AI4: FALSE | AJ4: FALSE | AK4: FALSE | AL4: FALSE
C5: Capital Expenditures | H5: 1000
C6: Growth | H6: 0.02
C7: EBITDA | I7: 85 | J7: =I7*(1+$H$6) -> 86.7 | K7: 88.434 | L7: 90.20268 | M7: 92.0067336 | N7: 93.84686827 | O7: 95.72380564 | P7: 97.63828175 | Q7: 99.59104739 | R7: 101.5828683 | S7: 103.6145257 | T7: 105.6868162 | U7: 107.8005525 | V7: 109.9565636 | W7: 112.1556949 | X7: 114.3988088 | Y7: 116.6867849 | Z7: 119.0205206 | AA7: 121.400931 | AB7: 123.8289497 | AC7: 126.3055287 | AD7: 128.8316392 | AE7: 131.408272 | AF7: 134.0364375 | AG7: 136.7171662 | AH7: 139.4515095 | AI7: 142.2405397 | AJ7: 145.0853505 | AK7: 147.9870575 | AL7: 150.9467987
C8: Net Cash Flow | H8: =H7-H5 -> -1000 | I8: =I7-I5 -> 85 | J8: 86.7 | K8: 88.434 | L8: 90.20268 | M8: 92.0067336 | N8: 93.84686827 | O8: 95.72380564 | P8: 97.63828175 | Q8: 99.59104739 | R8: 101.5828683 | S8: 103.6145257 | T8: 105.6868162 | U8: 107.8005525 | V8: 109.9565636 | W8: 112.1556949 | X8: 114.3988088 | Y8: 116.6867849 | Z8: 119.0205206 | AA8: 121.400931 | AB8: 123.8289497 | AC8: 126.3055287 | AD8: 128.8316392 | AE8: 131.408272 | AF8: 134.0364375 | AG8: 136.7171662 | AH8: 139.4515095 | AI8: 142.2405397 | AJ8: 145.0853505 | AK8: 147.9870575 | AL8: 150.9467987
C9: Project IRR | E9: =IRR(8:8) -> 0.09483965339
A11: Taxes
C12: Depreciation | E12: 5 | I12: =I3<=$E$12 -> TRUE | J12: =J3<=$E$12 -> TRUE | K12: TRUE | L12: TRUE | M12: TRUE | N12: FALSE | O12: FALSE | P12: FALSE | Q12: FALSE | R12: FALSE | S12: FALSE | T12: FALSE | U12: FALSE | V12: FALSE | W12: FALSE | X12: FALSE | Y12: FALSE | Z12: FALSE | AA12: FALSE | AB12: FALSE | AC12: FALSE | AD12: FALSE | AE12: FALSE | AF12: FALSE | AG12: FALSE | AH12: FALSE | AI12: FALSE | AJ12: FALSE | AK12: FALSE | AL12: FALSE
C13: Taxes | E13: 0
C14: Depreciation Expense | I14: =$H$5/$E$12*I12 -> 200 | J14: 200 | K14: 200 | L14: 200 | M14: 200 | N14: 0 | O14: 0 | P14: 0 | Q14: 0 | R14: 0 | S14: 0 | T14: 0 | U14: 0 | V14: 0 | W14: 0 | X14: 0 | Y14: 0 | Z14: 0 | AA14: 0 | AB14: 0 | AC14: 0 | AD14: 0 | AE14: 0 | AF14: 0 | AG14: 0 | AH14: 0 | AI14: 0 | AJ14: 0 | AK14: 0 | AL14: 0
B16: Financing Assumptions
C17: Target DSCR | E17: =H17/10 -> 1.5 | H17: 15
E18: 0 | F18: 1 | H18: 5 | I18: 10
C19: Interest Rate | E19: 0.03 | F19: 0.0325 | H19: 0.035 | I19: 0.0375
C20: Grace Period | E20: 0
C21: Tenor | E21: 6
C22: Max Debt to Capital | E22: =H22/100 -> 0.77 | H22: 77
C23: Sculpting | E23: TRUE
C24: Equal Instrallment | E24: =NOT(E23) -> FALSE
A26: Debt Size
C27: Max Debt to Cap | E27: =E22*H5 -> 770
C28: DSCR Target | E28: =F46 -> 319.1151762
D29: Final | E29: =MIN(E27:E28) -> 319.1151762
D30: Method | E30: =IF(E29<>E27,"Sculpt","Max Gear") -> Sculpt
C33: EBITDA | I33: =I8 -> 85 | J33: =J8 -> 86.7 | K33: 88.434 | L33: 90.20268 | M33: 92.0067336 | N33: 93.84686827 | O33: 95.72380564 | P33: 97.63828175 | Q33: 99.59104739 | R33: 101.5828683 | S33: 103.6145257 | T33: 105.6868162 | U33: 107.8005525 | V33: 109.9565636 | W33: 112.1556949 | X33: 114.3988088 | Y33: 116.6867849 | Z33: 119.0205206 | AA33: 121.400931 | AB33: 123.8289497 | AC33: 126.3055287 | AD33: 128.8316392 | AE33: 131.408272 | AF33: 134.0364375 | AG33: 136.7171662 | AH33: 139.4515095 | AI33: 142.2405397 | AJ33: 145.0853505 | AK33: 147.9870575 | AL33: 150.9467987
C34: Less: Taxes | I34: =I68 -> 0 | J34: =J68 -> 0 | K34: 0 | L34: 0 | M34: 0 | N34: 0 | O34: 0 | P34: 0 | Q34: 0 | R34: 0 | S34: 0 | T34: 0 | U34: 0 | V34: 0 | W34: 0 | X34: 0 | Y34: 0 | Z34: 0 | AA34: 0 | AB34: 0 | AC34: 0 | AD34: 0 | AE34: 0 | AF34: 0 | AG34: 0 | AH34: 0 | AI34: 0 | AJ34: 0 | AK34: 0 | AL34: 0
C35: CFADS | I35: =I33-I34 -> 85 | J35: =J33-J34 -> 86.7 | K35: 88.434 | L35: 90.20268 | M35: 92.0067336 | N35: 93.84686827 | O35: 95.72380564 | P35: 97.63828175 | Q35: 99.59104739 | R35: 101.5828683 | S35: 103.6145257 | T35: 105.6868162 | U35: 107.8005525 | V35: 109.9565636 | W35: 112.1556949 | X35: 114.3988088 | Y35: 116.6867849 | Z35: 119.0205206 | AA35: 121.400931 | AB35: 123.8289497 | AC35: 126.3055287 | AD35: 128.8316392 | AE35: 131.408272 | AF35: 134.0364375 | AG35: 136.7171662 | AH35: 139.4515095 | AI35: 142.2405397 | AJ35: 145.0853505 | AK35: 147.9870575 | AL35: 150.9467987
C37: Cash Flow over Repayment Period | I37: =IF(I4,I35) -> 85 | J37: =IF(J4,J35) -> 86.7 | K37: 88.434 | L37: 90.20268 | M37: 92.0067336 | N37: 93.84686827 | O37: FALSE | P37: FALSE | Q37: FALSE | R37: FALSE | S37: FALSE | T37: FALSE | U37: FALSE | V37: FALSE | W37: FALSE | X37: FALSE | Y37: FALSE | Z37: FALSE | AA37: FALSE | AB37: FALSE | AC37: FALSE | AD37: FALSE | AE37: FALSE | AF37: FALSE | AG37: FALSE | AH37: FALSE | AI37: FALSE | AJ37: FALSE | AK37: FALSE | AL37: FALSE
C38: Interest Rate | I38: =LOOKUP(I3,18:18,19:19) -> 0.0325 | J38: 0.0325 | K38: 0.0325 | L38: 0.0325 | M38: 0.035 | N38: 0.035 | O38: 0.035 | P38: 0.035 | Q38: 0.035 | R38: 0.0375 | S38: 0.0375 | T38: 0.0375 | U38: 0.0375 | V38: 0.0375 | W38: 0.0375 | X38: 0.0375 | Y38: 0.0375 | Z38: 0.0375 | AA38: 0.0375 | AB38: 0.0375 | AC38: 0.0375 | AD38: 0.0375 | AE38: 0.0375 | AF38: 0.0375 | AG38: 0.0375 | AH38: 0.0375 | AI38: 0.0375 | AJ38: 0.0375 | AK38: 0.0375 | AL38: 0.0375
C39: Interest Rate Index | H39: 1 | I39: =H39*(1+I38*I4) -> 1.0325 | J39: =I39*(1+J38*J4) -> 1.06605625 | K39: 1.100703078 | L39: 1.136475928 | M39: 1.176252586 | N39: 1.217421426 | O39: 1.217421426 | P39: 1.217421426 | Q39: 1.217421426 | R39: 1.217421426 | S39: 1.217421426 | T39: 1.217421426 | U39: 1.217421426 | V39: 1.217421426 | W39: 1.217421426 | X39: 1.217421426 | Y39: 1.217421426 | Z39: 1.217421426 | AA39: 1.217421426 | AB39: 1.217421426 | AC39: 1.217421426 | AD39: 1.217421426 | AE39: 1.217421426 | AF39: 1.217421426 | AG39: 1.217421426 | AH39: 1.217421426 | AI39: 1.217421426 | AJ39: 1.217421426 | AK39: 1.217421426 | AL39: 1.217421426
C40: NPV of Cash Flow over Repayment Period | F40: =SUMPRODUCT(I37:AL37/I39:AL39) -> 478.6727642
C41: LLCR Using Max Debt to Cap | E41: =F40/E27 -> 0.6216529406
C42: Target DSCR Applied | E42: =MAX(E41,E17) -> 1.5
E43: Computed | F43: Fixed | G43: Difference
C44: Target Debt Service | E44: =E42 -> 1.5 | F44: 1.5 | G44: =E44-F44 -> 0 | I44: =IF(I4,I37/$F$44) -> 56.66666667 | J44: =IF(J4,J37/$F$44) -> 57.8 | K44: 58.956 | L44: 60.13512 | M44: 61.3378224 | N44: 62.56457885 | O44: FALSE | P44: FALSE | Q44: FALSE | R44: FALSE | S44: FALSE | T44: FALSE | U44: FALSE | V44: FALSE | W44: FALSE | X44: FALSE | Y44: FALSE | Z44: FALSE | AA44: FALSE | AB44: FALSE | AC44: FALSE | AD44: FALSE | AE44: FALSE | AF44: FALSE | AG44: FALSE | AH44: FALSE | AI44: FALSE | AJ44: FALSE | AK44: FALSE | AL44: FALSE
E45: Comp 1 | F45: Fix 1 | G45: Diff 1 | H45: Total Dif
C46: NPV of Debt Service | E46: =SUMPRODUCT(I44:AL44/I39:AL39) -> 319.1151762 | F46: 319.1151762 | G46: =F46-E46 -> 0 | H46: =ABS(Diff_1)+ABS(Difference) -> 0
A48: Project Finance Model
B49: Cap Exp | H49: =H5 -> 1000
B50: Debt | H50: =E29 -> 319.1151762
B51: Equity | H51: =H49-H50 -> 680.8848238
B53: Debt
C54: Opening Balance | I54: =H56 -> 319.1151762 | J54: =I56 -> 272.8197527 | K54: 223.8863947 | L54: 172.2067025 | M54: 117.6683003 | N54: 60.44886845 | O54: 1.065814104e-13 | P54: 1.065814104e-13 | Q54: 1.065814104e-13 | R54: 1.065814104e-13 | S54: 1.065814104e-13 | T54: 1.065814104e-13 | U54: 1.065814104e-13 | V54: 1.065814104e-13 | W54: 1.065814104e-13 | X54: 1.065814104e-13 | Y54: 1.065814104e-13 | Z54: 1.065814104e-13 | AA54: 1.065814104e-13 | AB54: 1.065814104e-13 | AC54: 1.065814104e-13 | AD54: 1.065814104e-13 | AE54: 1.065814104e-13 | AF54: 1.065814104e-13 | AG54: 1.065814104e-13 | AH54: 1.065814104e-13 | AI54: 1.065814104e-13 | AJ54: 1.065814104e-13 | AK54: 1.065814104e-13 | AL54: 1.065814104e-13
C55: Less: Repayment | I55: =(I44-I58)*I4 -> 46.29542344 | J55: =(J44-J58)*J4 -> 48.93335804 | K55: 51.67969217 | L55: 54.53840217 | M55: 57.21943189 | N55: 60.44886845 | O55: 0 | P55: 0 | Q55: 0 | R55: 0 | S55: 0 | T55: 0 | U55: 0 | V55: 0 | W55: 0 | X55: 0 | Y55: 0 | Z55: 0 | AA55: 0 | AB55: 0 | AC55: 0 | AD55: 0 | AE55: 0 | AF55: 0 | AG55: 0 | AH55: 0 | AI55: 0 | AJ55: 0 | AK55: 0 | AL55: 0
C56: Closing Balance | H56: =H50 -> 319.1151762 | I56: =I54-I55 -> 272.8197527 | J56: =J54-J55 -> 223.8863947 | K56: 172.2067025 | L56: 117.6683003 | M56: 60.44886845 | N56: 1.065814104e-13 | O56: 1.065814104e-13 | P56: 1.065814104e-13 | Q56: 1.065814104e-13 | R56: 1.065814104e-13 | S56: 1.065814104e-13 | T56: 1.065814104e-13 | U56: 1.065814104e-13 | V56: 1.065814104e-13 | W56: 1.065814104e-13 | X56: 1.065814104e-13 | Y56: 1.065814104e-13 | Z56: 1.065814104e-13 | AA56: 1.065814104e-13 | AB56: 1.065814104e-13 | AC56: 1.065814104e-13 | AD56: 1.065814104e-13 | AE56: 1.065814104e-13 | AF56: 1.065814104e-13 | AG56: 1.065814104e-13 | AH56: 1.065814104e-13 | AI56: 1.065814104e-13 | AJ56: 1.065814104e-13 | AK56: 1.065814104e-13 | AL56: 1.065814104e-13
C57: Interest Rate | I57: =LOOKUP(I3,18:18,19:19) -> 0.0325 | J57: 0.0325 | K57: 0.0325 | L57: 0.0325 | M57: 0.035 | N57: 0.035 | O57: 0.035 | P57: 0.035 | Q57: 0.035 | R57: 0.0375 | S57: 0.0375 | T57: 0.0375 | U57: 0.0375 | V57: 0.0375 | W57: 0.0375 | X57: 0.0375 | Y57: 0.0375 | Z57: 0.0375 | AA57: 0.0375 | AB57: 0.0375 | AC57: 0.0375 | AD57: 0.0375 | AE57: 0.0375 | AF57: 0.0375 | AG57: 0.0375 | AH57: 0.0375 | AI57: 0.0375 | AJ57: 0.0375 | AK57: 0.0375 | AL57: 0.0375
C58: Interest Expense | I58: =I57*I54 -> 10.37124323 | J58: =J57*J54 -> 8.866641963 | K58: 7.276307827 | L58: 5.596717832 | M58: 4.118390512 | N58: 2.115710396 | O58: 3.730349363e-15 | P58: 3.730349363e-15 | Q58: 3.730349363e-15 | R58: 3.996802889e-15 | S58: 3.996802889e-15 | T58: 3.996802889e-15 | U58: 3.996802889e-15 | V58: 3.996802889e-15 | W58: 3.996802889e-15 | X58: 3.996802889e-15 | Y58: 3.996802889e-15 | Z58: 3.996802889e-15 | AA58: 3.996802889e-15 | AB58: 3.996802889e-15 | AC58: 3.996802889e-15 | AD58: 3.996802889e-15 | AE58: 3.996802889e-15 | AF58: 3.996802889e-15 | AG58: 3.996802889e-15 | AH58: 3.996802889e-15 | AI58: 3.996802889e-15 | AJ58: 3.996802889e-15 | AK58: 3.996802889e-15 | AL58: 3.996802889e-15
F59: =">"&F4 -> >6
C60: Ending Balance Test | F60: =ROUND(SUMIF(3:3,F59,56:56),3)=0 -> TRUE
A62: Profit and Loss
B63: EBITDA | I63: =I7 -> 85 | J63: =J7 -> 86.7 | K63: 88.434 | L63: 90.20268 | M63: 92.0067336 | N63: 93.84686827 | O63: 95.72380564 | P63: 97.63828175 | Q63: 99.59104739 | R63: 101.5828683 | S63: 103.6145257 | T63: 105.6868162 | U63: 107.8005525 | V63: 109.9565636 | W63: 112.1556949 | X63: 114.3988088 | Y63: 116.6867849 | Z63: 119.0205206 | AA63: 121.400931 | AB63: 123.8289497 | AC63: 126.3055287 | AD63: 128.8316392 | AE63: 131.408272 | AF63: 134.0364375 | AG63: 136.7171662 | AH63: 139.4515095 | AI63: 142.2405397 | AJ63: 145.0853505 | AK63: 147.9870575 | AL63: 150.9467987
B64: Less: Depreciation | I64: =I14 -> 200 | J64: =J14 -> 200 | K64: 200 | L64: 200 | M64: 200 | N64: 0 | O64: 0 | P64: 0 | Q64: 0 | R64: 0 | S64: 0 | T64: 0 | U64: 0 | V64: 0 | W64: 0 | X64: 0 | Y64: 0 | Z64: 0 | AA64: 0 | AB64: 0 | AC64: 0 | AD64: 0 | AE64: 0 | AF64: 0 | AG64: 0 | AH64: 0 | AI64: 0 | AJ64: 0 | AK64: 0 | AL64: 0
B65: EBIT | I65: =I63-I64 -> -115 | J65: =J63-J64 -> -113.3 | K65: -111.566 | L65: -109.79732 | M65: -107.9932664 | N65: 93.84686827 | O65: 95.72380564 | P65: 97.63828175 | Q65: 99.59104739 | R65: 101.5828683 | S65: 103.6145257 | T65: 105.6868162 | U65: 107.8005525 | V65: 109.9565636 | W65: 112.1556949 | X65: 114.3988088 | Y65: 116.6867849 | Z65: 119.0205206 | AA65: 121.400931 | AB65: 123.8289497 | AC65: 126.3055287 | AD65: 128.8316392 | AE65: 131.408272 | AF65: 134.0364375 | AG65: 136.7171662 | AH65: 139.4515095 | AI65: 142.2405397 | AJ65: 145.0853505 | AK65: 147.9870575 | AL65: 150.9467987
B66: Less: Interest Expense | I66: =I58 -> 10.37124323 | J66: =J58 -> 8.866641963 | K66: 7.276307827 | L66: 5.596717832 | M66: 4.118390512 | N66: 2.115710396 | O66: 3.730349363e-15 | P66: 3.730349363e-15 | Q66: 3.730349363e-15 | R66: 3.996802889e-15 | S66: 3.996802889e-15 | T66: 3.996802889e-15 | U66: 3.996802889e-15 | V66: 3.996802889e-15 | W66: 3.996802889e-15 | X66: 3.996802889e-15 | Y66: 3.996802889e-15 | Z66: 3.996802889e-15 | AA66: 3.996802889e-15 | AB66: 3.996802889e-15 | AC66: 3.996802889e-15 | AD66: 3.996802889e-15 | AE66: 3.996802889e-15 | AF66: 3.996802889e-15 | AG66: 3.996802889e-15 | AH66: 3.996802889e-15 | AI66: 3.996802889e-15 | AJ66: 3.996802889e-15 | AK66: 3.996802889e-15 | AL66: 3.996802889e-15
B67: EBT | I67: =I65-I66 -> -125.3712432 | J67: =J65-J66 -> -122.166642 | K67: -118.8423078 | L67: -115.3940378 | M67: -112.1116569 | N67: 91.73115788 | O67: 95.72380564 | P67: 97.63828175 | Q67: 99.59104739 | R67: 101.5828683 | S67: 103.6145257 | T67: 105.6868162 | U67: 107.8005525 | V67: 109.9565636 | W67: 112.1556949 | X67: 114.3988088 | Y67: 116.6867849 | Z67: 119.0205206 | AA67: 121.400931 | AB67: 123.8289497 | AC67: 126.3055287 | AD67: 128.8316392 | AE67: 131.408272 | AF67: 134.0364375 | AG67: 136.7171662 | AH67: 139.4515095 | AI67: 142.2405397 | AJ67: 145.0853505 | AK67: 147.9870575 | AL67: 150.9467987
B68: Taxes | F68: =E13 -> 0 | I68: =$F$68*I67 -> 0 | J68: =$F$68*J67 -> 0 | K68: 0 | L68: 0 | M68: 0 | N68: 0 | O68: 0 | P68: 0 | Q68: 0 | R68: 0 | S68: 0 | T68: 0 | U68: 0 | V68: 0 | W68: 0 | X68: 0 | Y68: 0 | Z68: 0 | AA68: 0 | AB68: 0 | AC68: 0 | AD68: 0 | AE68: 0 | AF68: 0 | AG68: 0 | AH68: 0 | AI68: 0 | AJ68: 0 | AK68: 0 | AL68: 0
A71: DSCR
B72: Cash Flow | I72: =I35 -> 85 | J72: =J35 -> 86.7 | K72: 88.434 | L72: 90.20268 | M72: 92.0067336 | N72: 93.84686827 | O72: 95.72380564 | P72: 97.63828175 | Q72: 99.59104739 | R72: 101.5828683 | S72: 103.6145257 | T72: 105.6868162 | U72: 107.8005525 | V72: 109.9565636 | W72: 112.1556949 | X72: 114.3988088 | Y72: 116.6867849 | Z72: 119.0205206 | AA72: 121.400931 | AB72: 123.8289497 | AC72: 126.3055287 | AD72: 128.8316392 | AE72: 131.408272 | AF72: 134.0364375 | AG72: 136.7171662 | AH72: 139.4515095 | AI72: 142.2405397 | AJ72: 145.0853505 | AK72: 147.9870575 | AL72: 150.9467987
B73: Debt Service | I73: =I55+I58 -> 56.66666667 | J73: =J55+J58 -> 57.8 | K73: 58.956 | L73: 60.13512 | M73: 61.3378224 | N73: 62.56457885 | O73: 3.730349363e-15 | P73: 3.730349363e-15 | Q73: 3.730349363e-15 | R73: 3.996802889e-15 | S73: 3.996802889e-15 | T73: 3.996802889e-15 | U73: 3.996802889e-15 | V73: 3.996802889e-15 | W73: 3.996802889e-15 | X73: 3.996802889e-15 | Y73: 3.996802889e-15 | Z73: 3.996802889e-15 | AA73: 3.996802889e-15 | AB73: 3.996802889e-15 | AC73: 3.996802889e-15 | AD73: 3.996802889e-15 | AE73: 3.996802889e-15 | AF73: 3.996802889e-15 | AG73: 3.996802889e-15 | AH73: 3.996802889e-15 | AI73: 3.996802889e-15 | AJ73: 3.996802889e-15 | AK73: 3.996802889e-15 | AL73: 3.996802889e-15
C74: DSCR | I74: =IF(I73>0.1,I72/I73) -> 1.5 | J74: =IF(J73>0.1,J72/J73) -> 1.5 | K74: 1.5 | L74: 1.5 | M74: 1.5 | N74: 1.5 | O74: FALSE | P74: FALSE | Q74: FALSE | R74: FALSE | S74: FALSE | T74: FALSE | U74: FALSE | V74: FALSE | W74: FALSE | X74: FALSE | Y74: FALSE | Z74: FALSE | AA74: FALSE | AB74: FALSE | AC74: FALSE | AD74: FALSE | AE74: FALSE | AF74: FALSE | AG74: FALSE | AH74: FALSE | AI74: FALSE | AJ74: FALSE | AK74: FALSE | AL74: FALSE
A76: Equity Return
B77: Equity Cash Flow | H77: =-H51 -> -680.8848238 | I77: =I7-I55-I58 -> 28.33333333 | J77: =J7-J55-J58 -> 28.9 | K77: 29.478 | L77: 30.06756 | M77: 30.6689112 | N77: 31.28228942 | O77: 95.72380564 | P77: 97.63828175 | Q77: 99.59104739 | R77: 101.5828683 | S77: 103.6145257 | T77: 105.6868162 | U77: 107.8005525 | V77: 109.9565636 | W77: 112.1556949 | X77: 114.3988088 | Y77: 116.6867849 | Z77: 119.0205206 | AA77: 121.400931 | AB77: 123.8289497 | AC77: 126.3055287 | AD77: 128.8316392 | AE77: 131.408272 | AF77: 134.0364375 | AG77: 136.7171662 | AH77: 139.4515095 | AI77: 142.2405397 | AJ77: 145.0853505 | AK77: 147.9870575 | AL77: 150.9467987
B78: Equity IRR | E78: =IRR(77:77) -> 0.1016552617
D80: Project IRR | E80: =E9 -> 0.09483965339 | J80: DSCR | L80: =E17 -> 1.5
D81: EBITDA | E81: =I7 -> 85 | J81: Debt to Capital | L81: =E22 -> 0.77
D82: Debt Size | E82: =E29 -> 319.1151762 | J82: Grace Period | L82: =E20 -> 0
D83: Equity IRR | E83: =E78 -> 0.1016552617 | J83: Tenor | L83: =E21 -> 6
E87: EBITDA
D97: Method: | E97: =E30 -> Sculpt

Sheet Analysis with No Taxes
A1: Sculpting and Grace Periods
C2: Period | G2: 0 | H2: 1 | I2: 2 | J2: 3 | K2: 4 | L2: 5 | M2: 6 | N2: 7 | O2: 8 | P2: 9 | Q2: 10 | R2: 11 | S2: 12 | T2: 13 | U2: 14 | V2: 15 | W2: 16 | X2: 17 | Y2: 18 | Z2: 19 | AA2: 20 | AB2: 21 | AC2: 22 | AD2: 23 | AE2: 24 | AF2: 25 | AG2: 26 | AH2: 27 | AI2: 28 | AJ2: 29 | AK2: 30
C3: Repayment Switch | E3: =E21 -> 0 | F3: =E3+E22 -> 19 | G3: =COUNTIF(H3:AK3,TRUE) -> 19 | H3: =AND(H2>$E$3,H2<=$F$3) -> TRUE | I3: =AND(I2>$E$3,I2<=$F$3) -> TRUE | J3: TRUE | K3: TRUE | L3: TRUE | M3: TRUE | N3: TRUE | O3: TRUE | P3: TRUE | Q3: TRUE | R3: TRUE | S3: TRUE | T3: TRUE | U3: TRUE | V3: TRUE | W3: TRUE | X3: TRUE | Y3: TRUE | Z3: TRUE | AA3: FALSE | AB3: FALSE | AC3: FALSE | AD3: FALSE | AE3: FALSE | AF3: FALSE | AG3: FALSE | AH3: FALSE | AI3: FALSE | AJ3: FALSE | AK3: FALSE
A5: Operations
C6: Capital Expenditures | G6: 1000
C7: Growth | G7: 0.02
C8: EBITDA | H8: 70 | I8: =H8*(1+$G$7) -> 71.4 | J8: =I8*(1+$G$7) -> 72.828 | K8: 74.28456 | L8: 75.7702512 | M8: 77.28565622 | N8: 78.83136935 | O8: 80.40799674 | P8: 82.01615667 | Q8: 83.6564798 | R8: 85.3296094 | S8: 87.03620159 | T8: 88.77692562 | U8: 90.55246413 | V8: 92.36351341 | W8: 94.21078368 | X8: 96.09499936 | Y8: 98.01689934 | Z8: 99.97723733 | AA8: 101.9767821 | AB8: 104.0163177 | AC8: 106.0966441 | AD8: 108.218577 | AE8: 110.3829485 | AF8: 112.5906075 | AG8: 114.8424196 | AH8: 117.139268 | AI8: 119.4820534 | AJ8: 121.8716944 | AK8: 124.3091283
C9: Net Cash Flow | G9: =G8-G6 -> -1000 | H9: =H8-H6 -> 70 | I9: 71.4 | J9: 72.828 | K9: 74.28456 | L9: 75.7702512 | M9: 77.28565622 | N9: 78.83136935 | O9: 80.40799674 | P9: 82.01615667 | Q9: 83.6564798 | R9: 85.3296094 | S9: 87.03620159 | T9: 88.77692562 | U9: 90.55246413 | V9: 92.36351341 | W9: 94.21078368 | X9: 96.09499936 | Y9: 98.01689934 | Z9: 99.97723733 | AA9: 101.9767821 | AB9: 104.0163177 | AC9: 106.0966441 | AD9: 108.218577 | AE9: 110.3829485 | AF9: 112.5906075 | AG9: 114.8424196 | AH9: 117.139268 | AI9: 119.4820534 | AJ9: 121.8716944 | AK9: 124.3091283
C10: Project IRR | E10: =IRR(9:9) -> 0.07586102364
A12: Taxes
C13: Depreciation | E13: 18 | H13: =H2<=$E$13 -> TRUE | I13: =I2<=$E$13 -> TRUE | J13: TRUE | K13: TRUE | L13: TRUE | M13: TRUE | N13: TRUE | O13: TRUE | P13: TRUE | Q13: TRUE | R13: TRUE | S13: TRUE | T13: TRUE | U13: TRUE | V13: TRUE | W13: TRUE | X13: TRUE | Y13: TRUE | Z13: FALSE | AA13: FALSE | AB13: FALSE | AC13: FALSE | AD13: FALSE | AE13: FALSE | AF13: FALSE | AG13: FALSE | AH13: FALSE | AI13: FALSE | AJ13: FALSE | AK13: FALSE
C14: Taxes | E14: 0
C15: Depreciation Expense | H15: =$G$6/$E$13*H13 -> 55.55555556 | I15: 55.55555556 | J15: 55.55555556 | K15: 55.55555556 | L15: 55.55555556 | M15: 55.55555556 | N15: 55.55555556 | O15: 55.55555556 | P15: 55.55555556 | Q15: 55.55555556 | R15: 55.55555556 | S15: 55.55555556 | T15: 55.55555556 | U15: 55.55555556 | V15: 55.55555556 | W15: 55.55555556 | X15: 55.55555556 | Y15: 55.55555556 | Z15: 0 | AA15: 0 | AB15: 0 | AC15: 0 | AD15: 0 | AE15: 0 | AF15: 0 | AG15: =$G$6/$E$13*AG13 -> 0 | AH15: 0 | AI15: 0 | AJ15: 0 | AK15: 0
B17: Financing Assumptions
C18: Target DSCR | E18: =G18/10 -> 1.3 | G18: 13
E19: 0 | F19: 1 | G19: 5 | H19: 10
C20: Interest Rate | E20: 0.03 | F20: 0.0325 | G20: 0.035 | H20: 0.0375
C21: Grace Period | E21: 0
C22: Tenor | E22: 19
C23: Max Debt to Capital | E23: =G23/100 -> 1.28 | G23: 128
C24: Sculpting | E24: TRUE
C25: Equal Instrallment | E25: =NOT(E24) -> FALSE
A27: Debt Size
C28: Max Debt to Cap | E28: =E23*G6 -> 1280
C29: DSCR Target | E29: =F42 -> 871.6914775
D30: Final | E30: =MIN(E28:E29) -> 871.6914775
D31: Method | E31: =IF(E30<>E28,"Sculpt","Max Gear") -> Sculpt
C34: Cash Flow over Repayment | H34: =IF(H3,H8) -> 70 | I34: =IF(I3,I8) -> 71.4 | J34: 72.828 | K34: 74.28456 | L34: 75.7702512 | M34: 77.28565622 | N34: 78.83136935 | O34: 80.40799674 | P34: 82.01615667 | Q34: 83.6564798 | R34: 85.3296094 | S34: 87.03620159 | T34: 88.77692562 | U34: 90.55246413 | V34: 92.36351341 | W34: 94.21078368 | X34: 96.09499936 | Y34: 98.01689934 | Z34: 99.97723733 | AA34: FALSE | AB34: FALSE | AC34: FALSE | AD34: FALSE | AE34: FALSE | AF34: FALSE | AG34: FALSE | AH34: FALSE | AI34: FALSE | AJ34: FALSE | AK34: FALSE
C35: Interest Rate | H35: =LOOKUP(H2,19:19,20:20) -> 0.0325 | I35: =LOOKUP(I2,19:19,20:20) -> 0.0325 | J35: 0.0325 | K35: 0.0325 | L35: 0.035 | M35: 0.035 | N35: 0.035 | O35: 0.035 | P35: 0.035 | Q35: 0.0375 | R35: 0.0375 | S35: 0.0375 | T35: 0.0375 | U35: 0.0375 | V35: 0.0375 | W35: 0.0375 | X35: 0.0375 | Y35: 0.0375 | Z35: 0.0375 | AA35: 0.0375 | AB35: 0.0375 | AC35: 0.0375 | AD35: 0.0375 | AE35: 0.0375 | AF35: 0.0375 | AG35: 0.0375 | AH35: 0.0375 | AI35: 0.0375 | AJ35: 0.0375 | AK35: 0.0375
C36: Interest Rate Index | G36: 1 | H36: =G36*(1+H35*H3) -> 1.0325 | I36: =H36*(1+I35*I3) -> 1.06605625 | J36: 1.100703078 | K36: 1.136475928 | L36: 1.176252586 | M36: 1.217421426 | N36: 1.260031176 | O36: 1.304132267 | P36: 1.349776897 | Q36: 1.40039353 | R36: 1.452908288 | S36: 1.507392348 | T36: 1.563919561 | U36: 1.622566545 | V36: 1.68341279 | W36: 1.74654077 | X36: 1.812036049 | Y36: 1.879987401 | Z36: 1.950486928 | AA36: 1.950486928 | AB36: 1.950486928 | AC36: 1.950486928 | AD36: 1.950486928 | AE36: 1.950486928 | AF36: 1.950486928 | AG36: 1.950486928 | AH36: 1.950486928 | AI36: 1.950486928 | AJ36: 1.950486928 | AK36: 1.950486928
C37: NPV of Cash Flow over Repayment Period | E37: =SUMPRODUCT(H34:AK34/H36:AK36) -> 1133.198921
C38: LLCR Using Max Debt to Cap | E38: =E37/E28 -> 0.8853116569
C39: Target DSCR Applied | E39: =MAX(E38,E18) -> 1.3
C41: Target Debt Service | F41: =E39 -> 1.3 | H41: =IF(H3,H8/$F$41) -> 53.84615385 | I41: =IF(I3,I8/$F$41) -> 54.92307692 | J41: 56.02153846 | K41: 57.14196923 | L41: 58.28480862 | M41: 59.45050479 | N41: 60.63951488 | O41: 61.85230518 | P41: 63.08935128 | Q41: 64.35113831 | R41: 65.63816108 | S41: 66.9509243 | T41: 68.28994278 | U41: 69.65574164 | V41: 71.04885647 | W41: 72.4698336 | X41: 73.91923027 | Y41: 75.39761488 | Z41: 76.90556718 | AA41: FALSE | AB41: FALSE | AC41: FALSE | AD41: FALSE | AE41: FALSE | AF41: FALSE | AG41: FALSE | AH41: FALSE | AI41: FALSE | AJ41: FALSE | AK41: FALSE
C42: NPV of Debt Service | F42: =SUMPRODUCT(H41:AK41/H36:AK36) -> 871.6914775
A44: Project Finance Model
B45: Cap Exp | G45: =G6 -> 1000
B46: Debt | G46: =E30 -> 871.6914775
B47: Equity | G47: =G45-G46 -> 128.3085225
B49: Debt
C50: Opening Balance | H50: =G52 -> 871.6914775 | I50: =H52 -> 846.1752967 | J50: 818.7529169 | K50: 789.3408483 | L50: 757.8524566 | M50: 726.092484 | N50: 692.0552161 | O50: 655.6376338 | P50: 616.7326458 | Q50: 575.2289371 | R50: 532.448884 | S50: 486.777556 | T50: 438.0807901 | U50: 386.2188769 | V50: 331.0463432 | W50: 272.4117246 | X50: 210.1573306 | Y50: 144.1190003 | Z50: 74.12584788 | AA50: 2.98427949e-13 | AB50: 2.98427949e-13 | AC50: 2.98427949e-13 | AD50: 2.98427949e-13 | AE50: 2.98427949e-13 | AF50: 2.98427949e-13 | AG50: 2.98427949e-13 | AH50: 2.98427949e-13 | AI50: 2.98427949e-13 | AJ50: 2.98427949e-13 | AK50: 2.98427949e-13
C51: Less: Repayment | H51: =(H41-H54)*H3 -> 25.51618083 | I51: =(I41-I54)*I3 -> 27.42237978 | J51: 29.41206866 | K51: 31.48839166 | L51: 31.75997263 | M51: 34.03726785 | N51: 36.41758232 | O51: 38.904988 | P51: 41.50370868 | Q51: 42.78005317 | R51: 45.67132793 | S51: 48.69676595 | T51: 51.86191316 | U51: 55.17253376 | V51: 58.6346186 | W51: 62.25439393 | X51: 66.03833038 | Y51: 69.99315237 | Z51: 74.12584788 | AA51: 0 | AB51: 0 | AC51: 0 | AD51: 0 | AE51: 0 | AF51: 0 | AG51: 0 | AH51: 0 | AI51: 0 | AJ51: 0 | AK51: 0
C52: Closing Balance | G52: =G46 -> 871.6914775 | H52: =H50-H51 -> 846.1752967 | I52: =I50-I51 -> 818.7529169 | J52: 789.3408483 | K52: 757.8524566 | L52: 726.092484 | M52: 692.0552161 | N52: 655.6376338 | O52: 616.7326458 | P52: 575.2289371 | Q52: 532.448884 | R52: 486.777556 | S52: 438.0807901 | T52: 386.2188769 | U52: 331.0463432 | V52: 272.4117246 | W52: 210.1573306 | X52: 144.1190003 | Y52: 74.12584788 | Z52: 2.98427949e-13 | AA52: 2.98427949e-13 | AB52: 2.98427949e-13 | AC52: 2.98427949e-13 | AD52: 2.98427949e-13 | AE52: 2.98427949e-13 | AF52: 2.98427949e-13 | AG52: 2.98427949e-13 | AH52: 2.98427949e-13 | AI52: 2.98427949e-13 | AJ52: 2.98427949e-13 | AK52: 2.98427949e-13
C53: Interest Rate | H53: =LOOKUP(H2,19:19,20:20) -> 0.0325 | I53: =LOOKUP(I2,19:19,20:20) -> 0.0325 | J53: 0.0325 | K53: 0.0325 | L53: 0.035 | M53: 0.035 | N53: 0.035 | O53: 0.035 | P53: 0.035 | Q53: 0.0375 | R53: 0.0375 | S53: 0.0375 | T53: 0.0375 | U53: 0.0375 | V53: 0.0375 | W53: 0.0375 | X53: 0.0375 | Y53: 0.0375 | Z53: 0.0375 | AA53: 0.0375 | AB53: 0.0375 | AC53: 0.0375 | AD53: 0.0375 | AE53: 0.0375 | AF53: 0.0375 | AG53: 0.0375 | AH53: 0.0375 | AI53: 0.0375 | AJ53: 0.0375 | AK53: 0.0375
C54: Interest Expense | H54: =H53*H50 -> 28.32997302 | I54: =I53*I50 -> 27.50069714 | J54: 26.6094698 | K54: 25.65357757 | L54: 26.52483598 | M54: 25.41323694 | N54: 24.22193256 | O54: 22.94731718 | P54: 21.5856426 | Q54: 21.57108514 | R54: 19.96683315 | S54: 18.25415835 | T54: 16.42802963 | U54: 14.48320788 | V54: 12.41423787 | W54: 10.21543967 | X54: 7.880899899 | Y54: 5.404462509 | Z54: 2.779719296 | AA54: 1.119104809e-14 | AB54: 1.119104809e-14 | AC54: 1.119104809e-14 | AD54: 1.119104809e-14 | AE54: 1.119104809e-14 | AF54: 1.119104809e-14 | AG54: 1.119104809e-14 | AH54: 1.119104809e-14 | AI54: 1.119104809e-14 | AJ54: 1.119104809e-14 | AK54: 1.119104809e-14
F55: =">"&F3 -> >19
C56: Ending Balance Test | F56: =ROUND(SUMIF(2:2,F55,52:52),3)=0 -> TRUE
A58: DSCR
B59: Cash Flow | H59: =H8 -> 70 | I59: =I8 -> 71.4 | J59: 72.828 | K59: 74.28456 | L59: 75.7702512 | M59: 77.28565622 | N59: 78.83136935 | O59: 80.40799674 | P59: 82.01615667 | Q59: 83.6564798 | R59: 85.3296094 | S59: 87.03620159 | T59: 88.77692562 | U59: 90.55246413 | V59: 92.36351341 | W59: 94.21078368 | X59: 96.09499936 | Y59: 98.01689934 | Z59: 99.97723733 | AA59: 101.9767821 | AB59: 104.0163177 | AC59: 106.0966441 | AD59: 108.218577 | AE59: 110.3829485 | AF59: 112.5906075 | AG59: 114.8424196 | AH59: 117.139268 | AI59: 119.4820534 | AJ59: 121.8716944 | AK59: 124.3091283
B60: Debt Service | H60: =H51+H54 -> 53.84615385 | I60: =I51+I54 -> 54.92307692 | J60: 56.02153846 | K60: 57.14196923 | L60: 58.28480862 | M60: 59.45050479 | N60: 60.63951488 | O60: 61.85230518 | P60: 63.08935128 | Q60: 64.35113831 | R60: 65.63816108 | S60: 66.9509243 | T60: 68.28994278 | U60: 69.65574164 | V60: 71.04885647 | W60: 72.4698336 | X60: 73.91923027 | Y60: 75.39761488 | Z60: 76.90556718 | AA60: 1.119104809e-14 | AB60: 1.119104809e-14 | AC60: 1.119104809e-14 | AD60: 1.119104809e-14 | AE60: 1.119104809e-14 | AF60: 1.119104809e-14 | AG60: 1.119104809e-14 | AH60: 1.119104809e-14 | AI60: 1.119104809e-14 | AJ60: 1.119104809e-14 | AK60: 1.119104809e-14
A62: Equity Return
B63: Equity Cash Flow | G63: =-G47 -> -128.3085225 | H63: =H8-H51-H54 -> 16.15384615 | I63: =I8-I51-I54 -> 16.47692308 | J63: 16.80646154 | K63: 17.14259077 | L63: 17.48544258 | M63: 17.83515144 | N63: 18.19185447 | O63: 18.55569155 | P63: 18.92680539 | Q63: 19.30534149 | R63: 19.69144832 | S63: 20.08527729 | T63: 20.48698284 | U63: 20.89672249 | V63: 21.31465694 | W63: 21.74095008 | X63: 22.17576908 | Y63: 22.61928446 | Z63: 23.07167015 | AA63: 101.9767821 | AB63: 104.0163177 | AC63: 106.0966441 | AD63: 108.218577 | AE63: 110.3829485 | AF63: 112.5906075 | AG63: 114.8424196 | AH63: 117.139268 | AI63: 119.4820534 | AJ63: 121.8716944 | AK63: 124.3091283
B64: Equity IRR | E64: =IRR(63:63) -> 0.1684010625
D66: Project IRR | E66: =E10 -> 0.07586102364 | I66: DSCR | K66: =E18 -> 1.3
D67: EBITDA | E67: =H8 -> 70 | I67: Debt to Capital | K67: =E23 -> 1.28
D68: Debt Size | E68: =E30 -> 871.6914775 | I68: Grace Period | K68: =E21 -> 0
D69: Equity IRR | E69: =E64 -> 0.1684010625 | I69: Tenor | K69: =E22 -> 19
H70: Tenor
G71: =E64 -> 0.1684010625 | H71: 7 | I71: 10 | J71: 15 | K71: 20 | L71: 25 | N71: =E31 -> Sculpt | O71: 7 | P71: 10 | Q71: 15 | R71: 20 | S71: 25
G72: 80 | H72: 0.09757995375 | I72: 0.1082160505 | J72: 0.1572883926 | N72: =G72 -> 80 | O72: Sculpt | P72: Sculpt | Q72: Sculpt | R72: Sculpt | S72: Sculpt
E73: EBITDA | G73: =G72-5 -> 75 | H73: 0.08942778632 | I73: 0.0975408637 | J73: 0.1297206222 | K73: 0.7261489879 | N73: =N72-5 -> 75 | O73: Sculpt | P73: Sculpt | Q73: Sculpt | R73: Sculpt | S73: Sculpt
G74: =G73-5 -> 70 | H74: 0.08134727105 | I74: 0.08741914166 | J74: 0.1089837158 | K74: 0.2145580845 | N74: =N73-5 -> 70 | O74: Sculpt | P74: Sculpt | Q74: Sculpt | R74: Sculpt | S74: Sculpt
G75: 65 | H75: 0.07328422417 | I75: 0.0776982726 | J75: 0.09209574298 | K75: 0.1375935392 | N75: 65 | O75: Sculpt | P75: Sculpt | Q75: Sculpt | R75: Sculpt | S75: Sculpt
G76: 60 | H76: 0.06518129951 | I76: 0.06824734453 | J76: 0.07758262992 | K76: 0.1010320807 | L76: 0.246994989 | N76: 60 | O76: Sculpt | P76: Sculpt | Q76: Sculpt | R76: Sculpt | S76: Sculpt
G77: 55 | H77: 0.05697521359 | I77: 0.05894724563 | J77: 0.06460218114 | K77: 0.07686068341 | L77: 0.1161832055 | N77: 55 | O77: Sculpt | P77: Sculpt | Q77: Sculpt | R77: Sculpt | S77: Sculpt
G78: 50 | H78: 0.04859303957 | I78: 0.04968218878 | J78: 0.05261446131 | K78: 0.05830333678 | L78: 0.07227451644 | N78: 50 | O78: Sculpt | P78: Sculpt | Q78: Sculpt | R78: Sculpt | S78: Sculpt
G79: 45 | H79: 0.03994690011 | I79: 0.04033115208 | J79: 0.04123397679 | K79: 0.04275045552 | L79: 0.0458691067 | N79: 45 | O79: Sculpt | P79: Sculpt | Q79: Sculpt | R79: Sculpt | S79: Sculpt
G80: 40 | H80: 0.03092586846 | I80: 0.03075754432 | J80: 0.03015191698 | K80: 0.0289012392 | L80: 0.02624535114 | N80: 40 | O80: Sculpt | P80: Sculpt | Q80: Sculpt | R80: Sculpt | S80: Sculpt
G81: 35 | H81: 0.02138280725 | I81: 0.0207945275 | J81: 0.01908615755 | K81: 0.01596766242 | L81: 0.009894389916 | N81: 35 | O81: Sculpt | P81: Sculpt | Q81: Sculpt | R81: Sculpt | S81: Sculpt
D83: Method: | E83: =E31 -> Sculpt

Sheet Sheet3
